Workbook

Sheet Cover Sheet
A1: Coal imports
A2: This spreadsheet forms part of the National Statistics publication Energy Trends produced by the Department for Energy Security & Net Zero (DESNZ). The data presented is on coal imports. Quarterly data are published one quarter in arrears in thousand tonnes.
A3: Publication dates
A4: These data were published on Thursday 28th March 2024 The next publication date is Thursday 27th June 2024
A5: Data period
A6: This spreadsheet contains quarterly data including new data for Quarter 4 2023
A7: Revisions
A8: There were are revisions to earlier data in this release Revisions are due to updates from data suppliers or the receipt of data replacing estimates unless otherwise stated
A9: Further information
A10: The data tables and accompanying cover sheet, contents, and commentary have been edited to meet legal accessibility regulations To provide feedback please contact
A11: energy.stats@energysecurity.gov.uk
A12: Some cells in the tables refer to notes which can be found in the notes worksheet Note markers are presented in square brackets, for example [Note 1]
A13: Time periods used in this workbook refer to calendar quarters, i.e. quarter 1 represents January to March, quarter 2 April to June, quarter 3 July to September and quarter 4 October to December, and calendar years i.e. January to December
A14: Links to additional further information in cells below
A15: Energy trends publication (opens in a new window)
A16: Data sources and methodology for Solid fuels and derived gases (opens in a new window)
A17: Energy statistics revisions policy (opens in a new window)
A18: Glossary and acronyms, DUKES Annex B (opens in a new window)
A19: Contact details
A20: Statistical enquiries
A21: Chris Michaels
A22: coalstatistics@energysecurity.gov.uk
A23: 0774 159 8039
A24: Media enquiries
A25: newsdesk@energysecurity.gov.uk
A26: 020 7215 1000

Sheet Contents
A1: Contents
A2: This worksheet contains one table
A3: This table includes a list of worksheets in this workbook with links to those worksheets
A4: Worksheet description | B4: Link
A5: Cover sheet | B5: Cover Sheet
A6: Contents table | B6: Contents
A7: Notes to understand the data | B7: Notes
A8: Commentary on the latest trends in the data | B8: Commentary
A9: Main table in thousand tonnes | B9: Main table (thousand tonnes)
A10: Annual table data from 1995 to 2020, in thousand tonnes | B10: Annual (thousand tonnes)
A11: Quarterly data from quarter 1 1995 to quarter 2 2021, in thousand tonnes | B11: Quarter (thousand tonnes)

Sheet Notes
A1: Notes
A2: This worksheet contains one table
A3: This table contains supplementary information supporting coal consumption and coal stocks data which are referred to in the data presented in this workbook
A4: Note | B4: Description
A5: Note 1 | B5: Refers to total imports, not net imports.
A6: Note 2 | B6: Percentage change between the most recent quarter and the same quarter a year earlier; (+) represents a positive percentage change greater than 100%.
A7: Note 3 | B7: Total coal imports are equivalent to those published in Table 2.1 of Energy Trends.
A8: Note 4 | B8: Shipment of Russian steam coal that arrived in July before the ban was cleared by HMRC in December, but is being counted when it entered the UK.

Sheet Commentary
A1: Commentary
A2: In the latest year
A3: Total coal imports in 2023 at 3.5 million tonnes were 45 per cent lower than in 2022. In 2022 the USA was the largest exporter of coal to the UK with a share of 45 per cent. This was followed by the Australia with 13 per cent and the European Union with 11 per cent.
A4: Steam coal imports were 54 per cent lower at 2.1 million tonnes in 2023 compared to 2022. The USA was the largest provider of UK's steam coal (37 per cent). This was followed by Colombia (16 per cent) and the European Union (14 per cent). Steam coal accounted for 60 per cent of total coal imports.
A5: Coking coal imports were down 23 per cent at 1.3 million tonnes compared to 2022. The USA was the largest provider of UK's coking coal (59 per cent). This was followed by Canada (16 per cent) and Australia (16 per cent). Coking coal accounted for 38 per cent of total coal imports.
A6: In the latest quarter
A7: Imports of coal fell as coal demand continued to decline
A8: Total coal imports in the fourth quarter of 2023 fell to 953 thousand tonnes, 44 per cent lower than in the same period in 2022. The largest provider was the USA (43 per cent). This was followed by Australia (18 per cent) and the European Union (13 per cent).
A9: No Russian coal imports since August 2022
A10: The UK banned Russian coal imports in August 2022. This reflects a decreasing reliance on Russian energy in line with that seen for both oil and gas.

Sheet Main Table
A1: Table 2.4 Coal imports (thousand tonnes) (note 1)
A2: This worksheet contains one table
A3: Some cells refer to notes which can be found on the notes worksheet
A4: Figures in this table are rounded to two decimal places. Therefore, totals may not equal the exact sum of their constituents.
A5: Type of coal | B5: Country of origin | C5: 2022 | D5: 2023 [provisional] | E5: Per cent change year-on-year | F5: 2021 4th quarter | G5: 2022 1st quarter | H5: 2022 2nd quarter | I5: 2022 3rd quarter | J5: 2022 4th quarter | K5: 2023 1st quarter | L5: 2023 2nd quarter | M5: 2023 3rd quarter | N5: 2023 4th quarter [provisional] | O5: per cent change [note 2]
A6: Steam Coal | B6: European Union | C6: =INDIRECT(Calculation!F7,FALSE) -> 297.83 | D6: =INDIRECT(Calculation!G7,FALSE) -> 288.14 | E6: =IF(((D6-C6)/C6)*100>100,"(+) ",IF(((D6-C6)/C6)*100<-100,"(-) ",IF(ROUND((((D6-C6)/C6)*100),1)=0,"- ",((D6-C6)/C6)*100))) -> -3.253533895 | F6: =INDIRECT(Calculation!J7,FALSE) -> 43.43 | G6: =INDIRECT(Calculation!K7,FALSE) -> 91.99 | H6: =INDIRECT(Calculation!L7,FALSE) -> 136.21 | I6: =INDIRECT(Calculation!M7,FALSE) -> 44.17 | J6: =INDIRECT(Calculation!N7,FALSE) -> 25.46 | K6: =INDIRECT(Calculation!O7,FALSE) -> 99.72 | L6: =INDIRECT(Calculation!P7,FALSE) -> 44.99 | M6: =INDIRECT(Calculation!Q7,FALSE) -> 43.16 | N6: =INDIRECT(Calculation!R7,FALSE) -> 100.27 | O6: =IF(((N6-J6)/J6)*100>100,"(+) ",IF(((N6-J6)/J6)*100<-100,"(-) ",IF(ROUND((((N6-J6)/J6)*100),1)=0,"- ",((N6-J6)/J6)*100))) -> (+)
A7: Steam Coal | B7: Australia | C7: =INDIRECT(Calculation!F8,FALSE) -> 436.16 | D7: =INDIRECT(Calculation!G8,FALSE) -> 232.49 | F7: =INDIRECT(Calculation!J8,FALSE) -> 0 | G7: =INDIRECT(Calculation!K8,FALSE) -> 0 | H7: =INDIRECT(Calculation!L8,FALSE) -> 0 | I7: =INDIRECT(Calculation!M8,FALSE) -> 137.6 | J7: =INDIRECT(Calculation!N8,FALSE) -> 298.56 | K7: =INDIRECT(Calculation!O8,FALSE) -> 63.8 | L7: =INDIRECT(Calculation!P8,FALSE) -> 0 | M7: =INDIRECT(Calculation!Q8,FALSE) -> 0 | N7: =INDIRECT(Calculation!R8,FALSE) -> 168.69
A8: Steam Coal | B8: Canada | C8: =INDIRECT(Calculation!F9,FALSE) -> 0.11 | D8: =INDIRECT(Calculation!G9,FALSE) -> 0 | F8: =INDIRECT(Calculation!J9,FALSE) -> 0 | G8: =INDIRECT(Calculation!K9,FALSE) -> 0.02 | H8: =INDIRECT(Calculation!L9,FALSE) -> 0.03 | I8: =INDIRECT(Calculation!M9,FALSE) -> 0 | J8: =INDIRECT(Calculation!N9,FALSE) -> 0.06 | K8: =INDIRECT(Calculation!O9,FALSE) -> 0 | L8: =INDIRECT(Calculation!P9,FALSE) -> 0 | M8: =INDIRECT(Calculation!Q9,FALSE) -> 0 | N8: =INDIRECT(Calculation!R9,FALSE) -> 0
A9: Steam Coal | B9: China | C9: =INDIRECT(Calculation!F10,FALSE) -> 0.04 | D9: =INDIRECT(Calculation!G10,FALSE) -> 0.01 | E9: =IF(((D9-C9)/C9)*100>100,"(+) ",IF(((D9-C9)/C9)*100<-100,"(-) ",IF(ROUND((((D9-C9)/C9)*100),1)=0,"- ",((D9-C9)/C9)*100))) -> -75 | F9: =INDIRECT(Calculation!J10,FALSE) -> 0.01 | G9: =INDIRECT(Calculation!K10,FALSE) -> 0 | H9: =INDIRECT(Calculation!L10,FALSE) -> 0.01 | I9: =INDIRECT(Calculation!M10,FALSE) -> 0.01 | J9: =INDIRECT(Calculation!N10,FALSE) -> 0.02 | K9: =INDIRECT(Calculation!O10,FALSE) -> 0 | L9: =INDIRECT(Calculation!P10,FALSE) -> 0.01 | M9: =INDIRECT(Calculation!Q10,FALSE) -> 0 | N9: =INDIRECT(Calculation!R10,FALSE) -> 0
A10: Steam Coal | B10: Colombia | C10: =INDIRECT(Calculation!F11,FALSE) -> 450.92 | D10: =INDIRECT(Calculation!G11,FALSE) -> 330.9 | E10: =IF(((D10-C10)/C10)*100>100,"(+) ",IF(((D10-C10)/C10)*100<-100,"(-) ",IF(ROUND((((D10-C10)/C10)*100),1)=0,"- ",((D10-C10)/C10)*100))) -> -26.61669476 | F10: =INDIRECT(Calculation!J11,FALSE) -> 70.42 | G10: =INDIRECT(Calculation!K11,FALSE) -> 90.47 | H10: =INDIRECT(Calculation!L11,FALSE) -> 38.68 | I10: =INDIRECT(Calculation!M11,FALSE) -> 192.01 | J10: =INDIRECT(Calculation!N11,FALSE) -> 129.76 | K10: =INDIRECT(Calculation!O11,FALSE) -> 77.66 | L10: =INDIRECT(Calculation!P11,FALSE) -> 135.07 | M10: =INDIRECT(Calculation!Q11,FALSE) -> 87 | N10: =INDIRECT(Calculation!R11,FALSE) -> 31.17
A11: Steam Coal | B11: Indonesia | C11: =INDIRECT(Calculation!F12,FALSE) -> 0 | D11: =INDIRECT(Calculation!G12,FALSE) -> 0 | F11: =INDIRECT(Calculation!J12,FALSE) -> 0.02 | G11: =INDIRECT(Calculation!K12,FALSE) -> 0 | H11: =INDIRECT(Calculation!L12,FALSE) -> 0 | I11: =INDIRECT(Calculation!M12,FALSE) -> 0 | J11: =INDIRECT(Calculation!N12,FALSE) -> 0 | K11: =INDIRECT(Calculation!O12,FALSE) -> 0 | L11: =INDIRECT(Calculation!P12,FALSE) -> 0 | M11: =INDIRECT(Calculation!Q12,FALSE) -> 0 | N11: =INDIRECT(Calculation!R12,FALSE) -> 0
A12: Steam Coal | B12: Republic of South Africa | C12: =INDIRECT(Calculation!F13,FALSE) -> 614.58 | D12: =INDIRECT(Calculation!G13,FALSE) -> 164.34 | E12: =IF(((D12-C12)/C12)*100>100,"(+) ",IF(((D12-C12)/C12)*100<-100,"(-) ",IF(ROUND((((D12-C12)/C12)*100),1)=0,"- ",((D12-C12)/C12)*100))) -> -73.25978717 | F12: =INDIRECT(Calculation!J13,FALSE) -> 0 | G12: =INDIRECT(Calculation!K13,FALSE) -> 55.73 | H12: =INDIRECT(Calculation!L13,FALSE) -> 71.38 | I12: =INDIRECT(Calculation!M13,FALSE) -> 207.04 | J12: =INDIRECT(Calculation!N13,FALSE) -> 280.43 | K12: =INDIRECT(Calculation!O13,FALSE) -> 88.3 | L12: =INDIRECT(Calculation!P13,FALSE) -> 25.02 | M12: =INDIRECT(Calculation!Q13,FALSE) -> 0.1 | N12: =INDIRECT(Calculation!R13,FALSE) -> 50.92
A13: Steam Coal | B13: Russia [note 4] | C13: =INDIRECT(Calculation!F14,FALSE) -> 980.25 | D13: =INDIRECT(Calculation!G14,FALSE) -> 0 | E13: -100 | F13: =INDIRECT(Calculation!J14,FALSE) -> 533.49 | G13: =INDIRECT(Calculation!K14,FALSE) -> 490.98 | H13: =INDIRECT(Calculation!L14,FALSE) -> 263.91 | I13: =INDIRECT(Calculation!M14,FALSE) -> 225.36 | J13: =INDIRECT(Calculation!N14,FALSE) -> 0 | K13: =INDIRECT(Calculation!O14,FALSE) -> 0 | L13: =INDIRECT(Calculation!P14,FALSE) -> 0 | M13: =INDIRECT(Calculation!Q14,FALSE) -> 0 | N13: =INDIRECT(Calculation!R14,FALSE) -> 0
A14: Steam Coal | B14: USA | C14: =INDIRECT(Calculation!F15,FALSE) -> 1316.01 | D14: =INDIRECT(Calculation!G15,FALSE) -> 776 | E14: -41.03388272 | F14: =INDIRECT(Calculation!J15,FALSE) -> 222.22 | G14: =INDIRECT(Calculation!K15,FALSE) -> 344.48 | H14: =INDIRECT(Calculation!L15,FALSE) -> 360 | I14: =INDIRECT(Calculation!M15,FALSE) -> 289.73 | J14: =INDIRECT(Calculation!N15,FALSE) -> 321.8 | K14: =INDIRECT(Calculation!O15,FALSE) -> 508.97 | L14: =INDIRECT(Calculation!P15,FALSE) -> 68.01 | M14: =INDIRECT(Calculation!Q15,FALSE) -> 0 | N14: =INDIRECT(Calculation!R15,FALSE) -> 199.02
A15: Steam Coal | B15: Venezuela | C15: =INDIRECT(Calculation!F16,FALSE) -> 75.49 | D15: =INDIRECT(Calculation!G16,FALSE) -> 170.95 | E15: (+) | F15: =INDIRECT(Calculation!J16,FALSE) -> 104.84 | G15: =INDIRECT(Calculation!K16,FALSE) -> 75.49 | H15: =INDIRECT(Calculation!L16,FALSE) -> 0 | I15: =INDIRECT(Calculation!M16,FALSE) -> 0 | J15: =INDIRECT(Calculation!N16,FALSE) -> 0 | K15: =INDIRECT(Calculation!O16,FALSE) -> 68.82 | L15: =INDIRECT(Calculation!P16,FALSE) -> 0 | M15: =INDIRECT(Calculation!Q16,FALSE) -> 69.81 | N15: =INDIRECT(Calculation!R16,FALSE) -> 32.32
A16: Steam Coal | B16: Other countries | C16: =INDIRECT(Calculation!F17,FALSE) -> 349.87 | D16: =INDIRECT(Calculation!G17,FALSE) -> 133.26 | E16: -61.91156715 | F16: =INDIRECT(Calculation!J17,FALSE) -> 20.51 | G16: =INDIRECT(Calculation!K17,FALSE) -> 0 | H16: =INDIRECT(Calculation!L17,FALSE) -> 10.69 | I16: =INDIRECT(Calculation!M17,FALSE) -> 146.3 | J16: =INDIRECT(Calculation!N17,FALSE) -> 192.88 | K16: =INDIRECT(Calculation!O17,FALSE) -> 53.52 | L16: =INDIRECT(Calculation!P17,FALSE) -> 34.71 | M16: =INDIRECT(Calculation!Q17,FALSE) -> 17.28 | N16: =INDIRECT(Calculation!R17,FALSE) -> 27.75
A17: Steam Coal | B17: Total all countries | C17: =INDIRECT(Calculation!F18,FALSE) -> 4521.23 | D17: =INDIRECT(Calculation!G18,FALSE) -> 2096.07 | E17: -53.63938574 | F17: =INDIRECT(Calculation!J18,FALSE) -> 994.93 | G17: =INDIRECT(Calculation!K18,FALSE) -> 1149.15 | H17: =INDIRECT(Calculation!L18,FALSE) -> 880.9 | I17: =INDIRECT(Calculation!M18,FALSE) -> 1242.21 | J17: =INDIRECT(Calculation!N18,FALSE) -> 1248.97 | K17: =INDIRECT(Calculation!O18,FALSE) -> 960.78 | L17: =INDIRECT(Calculation!P18,FALSE) -> 307.8 | M17: =INDIRECT(Calculation!Q18,FALSE) -> 217.35 | N17: =INDIRECT(Calculation!R18,FALSE) -> 610.14 | O17: =IF(((N17-J17)/J17)*100>100,"(+) ",IF(((N17-J17)/J17)*100<-100,"(-) ",IF(ROUND((((N17-J17)/J17)*100),1)=0,"- ",((N17-J17)/J17)*100))) -> -51.1485464
A18: Coking Coal | B18: European Union | C18: =INDIRECT(Calculation!F19,FALSE) -> 194.75 | D18: =INDIRECT(Calculation!G19,FALSE) -> 62.5 | E18: =IF(((D18-C18)/C18)*100>100,"(+) ",IF(((D18-C18)/C18)*100<-100,"(-) ",IF(ROUND((((D18-C18)/C18)*100),1)=0,"- ",((D18-C18)/C18)*100))) -> -67.90757381 | F18: =INDIRECT(Calculation!J19,FALSE) -> 9.72 | G18: =INDIRECT(Calculation!K19,FALSE) -> 168.4 | H18: =INDIRECT(Calculation!L19,FALSE) -> 8.41 | I18: =INDIRECT(Calculation!M19,FALSE) -> 6.8 | J18: =INDIRECT(Calculation!N19,FALSE) -> 11.14 | K18: =INDIRECT(Calculation!O19,FALSE) -> 10.25 | L18: =INDIRECT(Calculation!P19,FALSE) -> 7.9 | M18: =INDIRECT(Calculation!Q19,FALSE) -> 32.77 | N18: =INDIRECT(Calculation!R19,FALSE) -> 11.58 | O18: =IF(((N18-J18)/J18)*100>100,"(+) ",IF(((N18-J18)/J18)*100<-100,"(-) ",IF(ROUND((((N18-J18)/J18)*100),1)=0,"- ",((N18-J18)/J18)*100))) -> 3.9497307
A19: Coking Coal | B19: Australia | C19: =INDIRECT(Calculation!F20,FALSE) -> 328.99 | D19: =INDIRECT(Calculation!G20,FALSE) -> 215.54 | E19: =IF(((D19-C19)/C19)*100>100,"(+) ",IF(((D19-C19)/C19)*100<-100,"(-) ",IF(ROUND((((D19-C19)/C19)*100),1)=0,"- ",((D19-C19)/C19)*100))) -> -34.48433083 | F19: =INDIRECT(Calculation!J20,FALSE) -> 44.85 | G19: =INDIRECT(Calculation!K20,FALSE) -> 86.46 | H19: =INDIRECT(Calculation!L20,FALSE) -> 29.07 | I19: =INDIRECT(Calculation!M20,FALSE) -> 142.33 | J19: =INDIRECT(Calculation!N20,FALSE) -> 71.13 | K19: =INDIRECT(Calculation!O20,FALSE) -> 215.54 | L19: =INDIRECT(Calculation!P20,FALSE) -> 0 | M19: =INDIRECT(Calculation!Q20,FALSE) -> 0 | N19: =INDIRECT(Calculation!R20,FALSE) -> 0 | O19: =IF(((N19-J19)/J19)*100>100,"(+) ",IF(((N19-J19)/J19)*100<-100,"(-) ",IF(ROUND((((N19-J19)/J19)*100),1)=0,"- ",((N19-J19)/J19)*100))) -> -100
A20: Coking Coal | B20: Canada | C20: =INDIRECT(Calculation!F21,FALSE) -> 63.1 | D20: =INDIRECT(Calculation!G21,FALSE) -> 220.35 | F20: =INDIRECT(Calculation!J21,FALSE) -> 0 | G20: =INDIRECT(Calculation!K21,FALSE) -> 0 | H20: =INDIRECT(Calculation!L21,FALSE) -> 63.1 | I20: =INDIRECT(Calculation!M21,FALSE) -> 0 | J20: =INDIRECT(Calculation!N21,FALSE) -> 0 | K20: =INDIRECT(Calculation!O21,FALSE) -> 0 | L20: =INDIRECT(Calculation!P21,FALSE) -> 30.86 | M20: =INDIRECT(Calculation!Q21,FALSE) -> 79.27 | N20: =INDIRECT(Calculation!R21,FALSE) -> 110.22
A21: Coking Coal | B21: China | C21: =INDIRECT(Calculation!F22,FALSE) -> 0 | D21: =INDIRECT(Calculation!G22,FALSE) -> 44.22 | F21: =INDIRECT(Calculation!J22,FALSE) -> 0 | G21: =INDIRECT(Calculation!K22,FALSE) -> 0 | H21: =INDIRECT(Calculation!L22,FALSE) -> 0 | I21: =INDIRECT(Calculation!M22,FALSE) -> 0 | J21: =INDIRECT(Calculation!N22,FALSE) -> 0 | K21: =INDIRECT(Calculation!O22,FALSE) -> 0 | L21: =INDIRECT(Calculation!P22,FALSE) -> 0 | M21: =INDIRECT(Calculation!Q22,FALSE) -> 44.22 | N21: =INDIRECT(Calculation!R22,FALSE) -> 0
A22: Coking Coal | B22: Colombia | C22: =INDIRECT(Calculation!F23,FALSE) -> 0 | D22: =INDIRECT(Calculation!G23,FALSE) -> 0 | F22: =INDIRECT(Calculation!J23,FALSE) -> 0 | G22: =INDIRECT(Calculation!K23,FALSE) -> 0 | H22: =INDIRECT(Calculation!L23,FALSE) -> 0 | I22: =INDIRECT(Calculation!M23,FALSE) -> 0 | J22: =INDIRECT(Calculation!N23,FALSE) -> 0 | K22: =INDIRECT(Calculation!O23,FALSE) -> 0 | L22: =INDIRECT(Calculation!P23,FALSE) -> 0 | M22: =INDIRECT(Calculation!Q23,FALSE) -> 0 | N22: =INDIRECT(Calculation!R23,FALSE) -> 0
A23: Coking Coal | B23: Indonesia | C23: =INDIRECT(Calculation!F24,FALSE) -> 0 | D23: =INDIRECT(Calculation!G24,FALSE) -> 0 | F23: =INDIRECT(Calculation!J24,FALSE) -> 0 | G23: =INDIRECT(Calculation!K24,FALSE) -> 0 | H23: =INDIRECT(Calculation!L24,FALSE) -> 0 | I23: =INDIRECT(Calculation!M24,FALSE) -> 0 | J23: =INDIRECT(Calculation!N24,FALSE) -> 0 | K23: =INDIRECT(Calculation!O24,FALSE) -> 0 | L23: =INDIRECT(Calculation!P24,FALSE) -> 0 | M23: =INDIRECT(Calculation!Q24,FALSE) -> 0 | N23: =INDIRECT(Calculation!R24,FALSE) -> 0
A24: Coking Coal | B24: Republic of South Africa | C24: =INDIRECT(Calculation!F25,FALSE) -> 0 | D24: =INDIRECT(Calculation!G25,FALSE) -> 0 | F24: =INDIRECT(Calculation!J25,FALSE) -> 0 | G24: =INDIRECT(Calculation!K25,FALSE) -> 0 | H24: =INDIRECT(Calculation!L25,FALSE) -> 0 | I24: =INDIRECT(Calculation!M25,FALSE) -> 0 | J24: =INDIRECT(Calculation!N25,FALSE) -> 0 | K24: =INDIRECT(Calculation!O25,FALSE) -> 0 | L24: =INDIRECT(Calculation!P25,FALSE) -> 0 | M24: =INDIRECT(Calculation!Q25,FALSE) -> 0 | N24: =INDIRECT(Calculation!R25,FALSE) -> 0
A25: Coking Coal | B25: Russia | C25: =INDIRECT(Calculation!F26,FALSE) -> 28.98 | D25: =INDIRECT(Calculation!G26,FALSE) -> 0 | E25: =IF(((D25-C25)/C25)*100>100,"(+) ",IF(((D25-C25)/C25)*100<-100,"(-) ",IF(ROUND((((D25-C25)/C25)*100),1)=0,"- ",((D25-C25)/C25)*100))) -> -100 | F25: =INDIRECT(Calculation!J26,FALSE) -> 111.44 | G25: =INDIRECT(Calculation!K26,FALSE) -> 28.98 | H25: =INDIRECT(Calculation!L26,FALSE) -> 0 | I25: =INDIRECT(Calculation!M26,FALSE) -> 0 | J25: =INDIRECT(Calculation!N26,FALSE) -> 0 | K25: =INDIRECT(Calculation!O26,FALSE) -> 0 | L25: =INDIRECT(Calculation!P26,FALSE) -> 0 | M25: =INDIRECT(Calculation!Q26,FALSE) -> 0 | N25: =INDIRECT(Calculation!R26,FALSE) -> 0
A26: Coking Coal | B26: USA | C26: =INDIRECT(Calculation!F27,FALSE) -> 1128.04 | D26: =INDIRECT(Calculation!G27,FALSE) -> 796.9 | E26: =IF(((D26-C26)/C26)*100>100,"(+) ",IF(((D26-C26)/C26)*100<-100,"(-) ",IF(ROUND((((D26-C26)/C26)*100),1)=0,"- ",((D26-C26)/C26)*100))) -> -29.35534201 | F26: =INDIRECT(Calculation!J27,FALSE) -> 121.77 | G26: =INDIRECT(Calculation!K27,FALSE) -> 82.32 | H26: =INDIRECT(Calculation!L27,FALSE) -> 357.93 | I26: =INDIRECT(Calculation!M27,FALSE) -> 354.76 | J26: =INDIRECT(Calculation!N27,FALSE) -> 333.03 | K26: =INDIRECT(Calculation!O27,FALSE) -> 69.62 | L26: =INDIRECT(Calculation!P27,FALSE) -> 342.04 | M26: =INDIRECT(Calculation!Q27,FALSE) -> 177.56 | N26: =INDIRECT(Calculation!R27,FALSE) -> 207.68 | O26: =IF(((N26-J26)/J26)*100>100,"(+) ",IF(((N26-J26)/J26)*100<-100,"(-) ",IF(ROUND((((N26-J26)/J26)*100),1)=0,"- ",((N26-J26)/J26)*100))) -> -37.63925172
A27: Coking Coal | B27: Venezuela | C27: =INDIRECT(Calculation!F28,FALSE) -> 0 | D27: =INDIRECT(Calculation!G28,FALSE) -> 0 | F27: =INDIRECT(Calculation!J28,FALSE) -> 0 | G27: =INDIRECT(Calculation!K28,FALSE) -> 0 | H27: =INDIRECT(Calculation!L28,FALSE) -> 0 | I27: =INDIRECT(Calculation!M28,FALSE) -> 0 | J27: =INDIRECT(Calculation!N28,FALSE) -> 0 | K27: =INDIRECT(Calculation!O28,FALSE) -> 0 | L27: =INDIRECT(Calculation!P28,FALSE) -> 0 | M27: =INDIRECT(Calculation!Q28,FALSE) -> 0 | N27: =INDIRECT(Calculation!R28,FALSE) -> 0
A28: Coking Coal | B28: Other countries | C28: =INDIRECT(Calculation!F29,FALSE) -> 0 | D28: =INDIRECT(Calculation!G29,FALSE) -> 0 | F28: =INDIRECT(Calculation!J29,FALSE) -> 0 | G28: =INDIRECT(Calculation!K29,FALSE) -> 0 | H28: =INDIRECT(Calculation!L29,FALSE) -> 0 | I28: =INDIRECT(Calculation!M29,FALSE) -> 0 | J28: =INDIRECT(Calculation!N29,FALSE) -> 0 | K28: =INDIRECT(Calculation!O29,FALSE) -> 0 | L28: =INDIRECT(Calculation!P29,FALSE) -> 0 | M28: =INDIRECT(Calculation!Q29,FALSE) -> 0 | N28: =INDIRECT(Calculation!R29,FALSE) -> 0
A29: Coking Coal | B29: Total all countries | C29: =INDIRECT(Calculation!F30,FALSE) -> 1743.87 | D29: =INDIRECT(Calculation!G30,FALSE) -> 1339.51 | E29: =IF(((D29-C29)/C29)*100>100,"(+) ",IF(((D29-C29)/C29)*100<-100,"(-) ",IF(ROUND((((D29-C29)/C29)*100),1)=0,"- ",((D29-C29)/C29)*100))) -> -23.18750824 | F29: =INDIRECT(Calculation!J30,FALSE) -> 287.78 | G29: =INDIRECT(Calculation!K30,FALSE) -> 366.16 | H29: =INDIRECT(Calculation!L30,FALSE) -> 458.52 | I29: =INDIRECT(Calculation!M30,FALSE) -> 503.9 | J29: =INDIRECT(Calculation!N30,FALSE) -> 415.29 | K29: =INDIRECT(Calculation!O30,FALSE) -> 295.41 | L29: =INDIRECT(Calculation!P30,FALSE) -> 380.8 | M29: =INDIRECT(Calculation!Q30,FALSE) -> 333.82 | N29: =INDIRECT(Calculation!R30,FALSE) -> 329.48 | O29: =IF(((N29-J29)/J29)*100>100,"(+) ",IF(((N29-J29)/J29)*100<-100,"(-) ",IF(ROUND((((N29-J29)/J29)*100),1)=0,"- ",((N29-J29)/J29)*100))) -> -20.66266946
A30: Anthracite | B30: European Union | C30: =INDIRECT(Calculation!F31,FALSE) -> 63.92 | D30: =INDIRECT(Calculation!G31,FALSE) -> 39.07 | E30: =IF(((D30-C30)/C30)*100>100,"(+) ",IF(((D30-C30)/C30)*100<-100,"(-) ",IF(ROUND((((D30-C30)/C30)*100),1)=0,"- ",((D30-C30)/C30)*100))) -> -38.8767209 | F30: =INDIRECT(Calculation!J31,FALSE) -> 7.8 | G30: =INDIRECT(Calculation!K31,FALSE) -> 35.28 | H30: =INDIRECT(Calculation!L31,FALSE) -> 12.44 | I30: =INDIRECT(Calculation!M31,FALSE) -> 7.03 | J30: =INDIRECT(Calculation!N31,FALSE) -> 9.17 | K30: =INDIRECT(Calculation!O31,FALSE) -> 8.9 | L30: =INDIRECT(Calculation!P31,FALSE) -> 7.66 | M30: =INDIRECT(Calculation!Q31,FALSE) -> 13.59 | N30: =INDIRECT(Calculation!R31,FALSE) -> 8.92 | O30: =IF(((N30-J30)/J30)*100>100,"(+) ",IF(((N30-J30)/J30)*100<-100,"(-) ",IF(ROUND((((N30-J30)/J30)*100),1)=0,"- ",((N30-J30)/J30)*100))) -> -2.726281352
A31: Anthracite | B31: Australia | C31: =INDIRECT(Calculation!F32,FALSE) -> 4.38 | D31: =INDIRECT(Calculation!G32,FALSE) -> 0 | F31: =INDIRECT(Calculation!J32,FALSE) -> 0 | G31: =INDIRECT(Calculation!K32,FALSE) -> 0 | H31: =INDIRECT(Calculation!L32,FALSE) -> 0 | I31: =INDIRECT(Calculation!M32,FALSE) -> 4.38 | J31: =INDIRECT(Calculation!N32,FALSE) -> 0 | K31: =INDIRECT(Calculation!O32,FALSE) -> 0 | L31: =INDIRECT(Calculation!P32,FALSE) -> 0 | M31: =INDIRECT(Calculation!Q32,FALSE) -> 0 | N31: =INDIRECT(Calculation!R32,FALSE) -> 0
A32: Anthracite | B32: Canada | C32: =INDIRECT(Calculation!F33,FALSE) -> 5.63 | D32: =INDIRECT(Calculation!G33,FALSE) -> 0 | F32: =INDIRECT(Calculation!J33,FALSE) -> 0 | G32: =INDIRECT(Calculation!K33,FALSE) -> 0 | H32: =INDIRECT(Calculation!L33,FALSE) -> 0 | I32: =INDIRECT(Calculation!M33,FALSE) -> 0 | J32: =INDIRECT(Calculation!N33,FALSE) -> 5.63 | K32: =INDIRECT(Calculation!O33,FALSE) -> 0 | L32: =INDIRECT(Calculation!P33,FALSE) -> 0 | M32: =INDIRECT(Calculation!Q33,FALSE) -> 0 | N32: =INDIRECT(Calculation!R33,FALSE) -> 0
A33: Anthracite | B33: China | C33: =INDIRECT(Calculation!F34,FALSE) -> 0.02 | D33: =INDIRECT(Calculation!G34,FALSE) -> 0.13 | E33: =IF(((D33-C33)/C33)*100>100,"(+) ",IF(((D33-C33)/C33)*100<-100,"(-) ",IF(ROUND((((D33-C33)/C33)*100),1)=0,"- ",((D33-C33)/C33)*100))) -> (+) | F33: =INDIRECT(Calculation!J34,FALSE) -> 0.69 | G33: =INDIRECT(Calculation!K34,FALSE) -> 0 | H33: =INDIRECT(Calculation!L34,FALSE) -> 0 | I33: =INDIRECT(Calculation!M34,FALSE) -> 0 | J33: =INDIRECT(Calculation!N34,FALSE) -> 0.02 | K33: =INDIRECT(Calculation!O34,FALSE) -> 0 | L33: =INDIRECT(Calculation!P34,FALSE) -> 0 | M33: =INDIRECT(Calculation!Q34,FALSE) -> 0.04 | N33: =INDIRECT(Calculation!R34,FALSE) -> 0.09
A34: Anthracite | B34: Colombia | C34: =INDIRECT(Calculation!F35,FALSE) -> 0 | D34: =INDIRECT(Calculation!G35,FALSE) -> 1.09 | F34: =INDIRECT(Calculation!J35,FALSE) -> 0 | G34: =INDIRECT(Calculation!K35,FALSE) -> 0 | H34: =INDIRECT(Calculation!L35,FALSE) -> 0 | I34: =INDIRECT(Calculation!M35,FALSE) -> 0 | J34: =INDIRECT(Calculation!N35,FALSE) -> 0 | K34: =INDIRECT(Calculation!O35,FALSE) -> 0 | L34: =INDIRECT(Calculation!P35,FALSE) -> 0 | M34: =INDIRECT(Calculation!Q35,FALSE) -> 0 | N34: =INDIRECT(Calculation!R35,FALSE) -> 1.09
A35: Anthracite | B35: Indonesia | C35: =INDIRECT(Calculation!F36,FALSE) -> 0.07 | D35: =INDIRECT(Calculation!G36,FALSE) -> 0.01 | F35: =INDIRECT(Calculation!J36,FALSE) -> 0.01 | G35: =INDIRECT(Calculation!K36,FALSE) -> 0.07 | H35: =INDIRECT(Calculation!L36,FALSE) -> 0 | I35: =INDIRECT(Calculation!M36,FALSE) -> 0 | J35: =INDIRECT(Calculation!N36,FALSE) -> 0 | K35: =INDIRECT(Calculation!O36,FALSE) -> 0 | L35: =INDIRECT(Calculation!P36,FALSE) -> 0 | M35: =INDIRECT(Calculation!Q36,FALSE) -> 0.01 | N35: =INDIRECT(Calculation!R36,FALSE) -> 0
A36: Anthracite | B36: Republic of South Africa | C36: =INDIRECT(Calculation!F37,FALSE) -> 0 | D36: =INDIRECT(Calculation!G37,FALSE) -> 3.44 | F36: =INDIRECT(Calculation!J37,FALSE) -> 0 | G36: =INDIRECT(Calculation!K37,FALSE) -> 0 | H36: =INDIRECT(Calculation!L37,FALSE) -> 0 | I36: =INDIRECT(Calculation!M37,FALSE) -> 0 | J36: =INDIRECT(Calculation!N37,FALSE) -> 0 | K36: =INDIRECT(Calculation!O37,FALSE) -> 0 | L36: =INDIRECT(Calculation!P37,FALSE) -> 0 | M36: =INDIRECT(Calculation!Q37,FALSE) -> 0.32 | N36: =INDIRECT(Calculation!R37,FALSE) -> 3.12
A37: Anthracite | B37: Russia | C37: =INDIRECT(Calculation!F38,FALSE) -> 0 | D37: =INDIRECT(Calculation!G38,FALSE) -> 0 | F37: =INDIRECT(Calculation!J38,FALSE) -> 11.88 | G37: =INDIRECT(Calculation!K38,FALSE) -> 0 | H37: =INDIRECT(Calculation!L38,FALSE) -> 0 | I37: =INDIRECT(Calculation!M38,FALSE) -> 0 | J37: =INDIRECT(Calculation!N38,FALSE) -> 0 | K37: =INDIRECT(Calculation!O38,FALSE) -> 0 | L37: =INDIRECT(Calculation!P38,FALSE) -> 0 | M37: =INDIRECT(Calculation!Q38,FALSE) -> 0 | N37: =INDIRECT(Calculation!R38,FALSE) -> 0
A38: Anthracite | B38: USA | C38: =INDIRECT(Calculation!F39,FALSE) -> 5.31 | D38: =INDIRECT(Calculation!G39,FALSE) -> 0 | F38: =INDIRECT(Calculation!J39,FALSE) -> 0.05 | G38: =INDIRECT(Calculation!K39,FALSE) -> 0 | H38: =INDIRECT(Calculation!L39,FALSE) -> 0.24 | I38: =INDIRECT(Calculation!M39,FALSE) -> 5.07 | J38: =INDIRECT(Calculation!N39,FALSE) -> 0 | K38: =INDIRECT(Calculation!O39,FALSE) -> 0 | L38: =INDIRECT(Calculation!P39,FALSE) -> 0 | M38: =INDIRECT(Calculation!Q39,FALSE) -> 0 | N38: =INDIRECT(Calculation!R39,FALSE) -> 0
A39: Anthracite | B39: Venezuela | C39: =INDIRECT(Calculation!F40,FALSE) -> 0 | D39: =INDIRECT(Calculation!G40,FALSE) -> 0 | F39: =INDIRECT(Calculation!J40,FALSE) -> 0 | G39: =INDIRECT(Calculation!K40,FALSE) -> 0 | H39: =INDIRECT(Calculation!L40,FALSE) -> 0 | I39: =INDIRECT(Calculation!M40,FALSE) -> 0 | J39: =INDIRECT(Calculation!N40,FALSE) -> 0 | K39: =INDIRECT(Calculation!O40,FALSE) -> 0 | L39: =INDIRECT(Calculation!P40,FALSE) -> 0 | M39: =INDIRECT(Calculation!Q40,FALSE) -> 0 | N39: =INDIRECT(Calculation!R40,FALSE) -> 0
A40: Anthracite | B40: Other countries | C40: =INDIRECT(Calculation!F41,FALSE) -> 13.12 | D40: =INDIRECT(Calculation!G41,FALSE) -> 3.31 | E40: -74.77134146 | F40: =INDIRECT(Calculation!J41,FALSE) -> 0.01 | G40: =INDIRECT(Calculation!K41,FALSE) -> 0.16 | H40: =INDIRECT(Calculation!L41,FALSE) -> 0 | I40: =INDIRECT(Calculation!M41,FALSE) -> 0.9 | J40: =INDIRECT(Calculation!N41,FALSE) -> 12.06 | K40: =INDIRECT(Calculation!O41,FALSE) -> 3.29 | L40: =INDIRECT(Calculation!P41,FALSE) -> 0 | M40: =INDIRECT(Calculation!Q41,FALSE) -> 0.02 | N40: =INDIRECT(Calculation!R41,FALSE) -> 0
A41: Anthracite | B41: Total all countries | C41: =INDIRECT(Calculation!F42,FALSE) -> 92.45 | D41: =INDIRECT(Calculation!G42,FALSE) -> 47.06 | E41: -49.09680909 | F41: =INDIRECT(Calculation!J42,FALSE) -> 20.45 | G41: =INDIRECT(Calculation!K42,FALSE) -> 35.51 | H41: =INDIRECT(Calculation!L42,FALSE) -> 12.68 | I41: =INDIRECT(Calculation!M42,FALSE) -> 17.38 | J41: =INDIRECT(Calculation!N42,FALSE) -> 26.88 | K41: =INDIRECT(Calculation!O42,FALSE) -> 12.19 | L41: =INDIRECT(Calculation!P42,FALSE) -> 7.66 | M41: =INDIRECT(Calculation!Q42,FALSE) -> 13.98 | N41: =INDIRECT(Calculation!R42,FALSE) -> 13.23 | O41: =IF(((N41-J41)/J41)*100>100,"(+) ",IF(((N41-J41)/J41)*100<-100,"(-) ",IF(ROUND((((N41-J41)/J41)*100),1)=0,"- ",((N41-J41)/J41)*100))) -> -50.78125
A42: Total coal imports [note 3] | B42: Total all countries | C42: =INDIRECT(Calculation!F43,FALSE) -> 6357.54 | D42: =INDIRECT(Calculation!G43,FALSE) -> 3482.64 | E42: -45.22032107 | F42: =INDIRECT(Calculation!J43,FALSE) -> 1303.17 | G42: =INDIRECT(Calculation!K43,FALSE) -> 1550.82 | H42: =INDIRECT(Calculation!L43,FALSE) -> 1352.09 | I42: =INDIRECT(Calculation!M43,FALSE) -> 1763.49 | J42: =INDIRECT(Calculation!N43,FALSE) -> 1691.14 | K42: =INDIRECT(Calculation!O43,FALSE) -> 1268.38 | L42: =INDIRECT(Calculation!P43,FALSE) -> 696.26 | M42: =INDIRECT(Calculation!Q43,FALSE) -> 565.15 | N42: =INDIRECT(Calculation!R43,FALSE) -> 952.85 | O42: =IF(((N42-J42)/J42)*100>100,"(+) ",IF(((N42-J42)/J42)*100<-100,"(-) ",IF(ROUND((((N42-J42)/J42)*100),1)=0,"- ",((N42-J42)/J42)*100))) -> -43.65635015

Sheet Annual
A1: Table 2.4 Coal imports (thousand tonnes) (note 1)
A2: This worksheet contains one table
A4: Type of coal | B4: Country of origin | C4: 2002 | D4: 2003 | E4: 2004 | F4: 2005 | G4: 2006 | H4: 2007 | I4: 2008 | J4: 2009 | K4: 2010 | L4: 2011 | M4: 2012 | N4: 2013 | O4: 2014 | P4: 2015 | Q4: 2016 | R4: 2017 | S4: 2018 | T4: 2019 | U4: 2020 | V4: 2021 | W4: 2022 | X4: 2023 [provisional]
A5: Steam Coal | B5: European Union | C5: =SUM(Quarter!C5:F5) -> 307.45 | D5: =SUM(Quarter!G5:J5) -> 314.03 | E5: =SUM(Quarter!K5:N5) -> 931.89 | F5: =SUM(Quarter!O5:R5) -> 1001.17 | G5: =SUM(Quarter!S5:V5) -> 1583.6 | H5: =SUM(Quarter!W5:Z5) -> 482.4 | I5: =SUM(Quarter!AA5:AD5) -> 933.07 | J5: =SUM(Quarter!AE5:AH5) -> 1136.42 | K5: =SUM(Quarter!AI5:AL5) -> 880.89 | L5: =SUM(Quarter!AM5:AP5) -> 1056.39 | M5: =SUM(Quarter!AQ5:AT5) -> 582.85 | N5: =SUM(Quarter!AU5:AX5) -> 1124.49 | O5: =SUM(Quarter!AY5:BB5) -> 689.62 | P5: =SUM(Quarter!BC5:BF5) -> 526.37 | Q5: =SUM(Quarter!BG5:BJ5) -> 336.5 | R5: =SUM(Quarter!BK5:BN5) -> 293.17 | S5: =SUM(Quarter!BO5:BR5) -> 253.6 | T5: =SUM(Quarter!BS5:BV5) -> 307.02 | U5: =SUM(Quarter!BW5:BZ5) -> 275.54 | V5: =SUM(Quarter!CA5:CD5) -> 257.21 | W5: =SUM(Quarter!CE5:CH5) -> 297.83 | X5: =SUM(Quarter!CI5:CL5) -> 288.14
A6: Steam Coal | B6: Australia | C6: =SUM(Quarter!C6:F6) -> 760.91 | D6: =SUM(Quarter!G6:J6) -> 1289 | E6: =SUM(Quarter!K6:N6) -> 2101.1 | F6: =SUM(Quarter!O6:R6) -> 827.77 | G6: =SUM(Quarter!S6:V6) -> 155.93 | H6: =SUM(Quarter!W6:Z6) -> 535.39 | I6: =SUM(Quarter!AA6:AD6) -> 698.53 | J6: =SUM(Quarter!AE6:AH6) -> 443.13 | K6: =SUM(Quarter!AI6:AL6) -> 0 | L6: =SUM(Quarter!AM6:AP6) -> 0 | M6: =SUM(Quarter!AQ6:AT6) -> 0 | N6: =SUM(Quarter!AU6:AX6) -> 89.23 | O6: =SUM(Quarter!AY6:BB6) -> 0 | P6: =SUM(Quarter!BC6:BF6) -> 0 | Q6: =SUM(Quarter!BG6:BJ6) -> 0 | R6: =SUM(Quarter!BK6:BN6) -> 0.01 | S6: =SUM(Quarter!BO6:BR6) -> 0 | T6: =SUM(Quarter!BS6:BV6) -> 0 | U6: =SUM(Quarter!BW6:BZ6) -> 0 | V6: =SUM(Quarter!CA6:CD6) -> 0 | W6: =SUM(Quarter!CE6:CH6) -> 436.16 | X6: =SUM(Quarter!CI6:CL6) -> 232.49
A7: Steam Coal | B7: Canada | C7: =SUM(Quarter!C7:F7) -> 0 | D7: =SUM(Quarter!G7:J7) -> 0 | E7: =SUM(Quarter!K7:N7) -> 0 | F7: =SUM(Quarter!O7:R7) -> 0 | G7: =SUM(Quarter!S7:V7) -> 0 | H7: =SUM(Quarter!W7:Z7) -> 0 | I7: =SUM(Quarter!AA7:AD7) -> 0 | J7: =SUM(Quarter!AE7:AH7) -> 0 | K7: =SUM(Quarter!AI7:AL7) -> 0 | L7: =SUM(Quarter!AM7:AP7) -> 0 | M7: =SUM(Quarter!AQ7:AT7) -> 152.62 | N7: =SUM(Quarter!AU7:AX7) -> 498.93 | O7: =SUM(Quarter!AY7:BB7) -> 0.07 | P7: =SUM(Quarter!BC7:BF7) -> 0.02 | Q7: =SUM(Quarter!BG7:BJ7) -> 0.17 | R7: =SUM(Quarter!BK7:BN7) -> 0.29 | S7: =SUM(Quarter!BO7:BR7) -> 0.08 | T7: =SUM(Quarter!BS7:BV7) -> 0.11 | U7: =SUM(Quarter!BW7:BZ7) -> 0 | V7: =SUM(Quarter!CA7:CD7) -> 0 | W7: =SUM(Quarter!CE7:CH7) -> 0.11 | X7: =SUM(Quarter!CI7:CL7) -> 0
A8: Steam Coal | B8: China | C8: =SUM(Quarter!C8:F8) -> 200.17 | D8: =SUM(Quarter!G8:J8) -> 187.79 | E8: =SUM(Quarter!K8:N8) -> 178.52 | F8: =SUM(Quarter!O8:R8) -> 105.95 | G8: =SUM(Quarter!S8:V8) -> 36.11 | H8: =SUM(Quarter!W8:Z8) -> 169.62 | I8: =SUM(Quarter!AA8:AD8) -> 0 | J8: =SUM(Quarter!AE8:AH8) -> 600.17 | K8: =SUM(Quarter!AI8:AL8) -> 0 | L8: =SUM(Quarter!AM8:AP8) -> 0 | M8: =SUM(Quarter!AQ8:AT8) -> 0.34 | N8: =SUM(Quarter!AU8:AX8) -> 0.11 | O8: =SUM(Quarter!AY8:BB8) -> 78.01 | P8: =SUM(Quarter!BC8:BF8) -> 0 | Q8: =SUM(Quarter!BG8:BJ8) -> 0.01 | R8: =SUM(Quarter!BK8:BN8) -> 0.01 | S8: =SUM(Quarter!BO8:BR8) -> 0.02 | T8: =SUM(Quarter!BS8:BV8) -> 0.01 | U8: =SUM(Quarter!BW8:BZ8) -> 0.02 | V8: =SUM(Quarter!CA8:CD8) -> 0.02 | W8: =SUM(Quarter!CE8:CH8) -> 0.04 | X8: =SUM(Quarter!CI8:CL8) -> 0.01
A9: Steam Coal | B9: Colombia | C9: =SUM(Quarter!C9:F9) -> 3778.86 | D9: =SUM(Quarter!G9:J9) -> 2974.37 | E9: =SUM(Quarter!K9:N9) -> 3609.69 | F9: =SUM(Quarter!O9:R9) -> 3368.88 | G9: =SUM(Quarter!S9:V9) -> 3882.74 | H9: =SUM(Quarter!W9:Z9) -> 3842.36 | I9: =SUM(Quarter!AA9:AD9) -> 5294.1 | J9: =SUM(Quarter!AE9:AH9) -> 5232.87 | K9: =SUM(Quarter!AI9:AL9) -> 6235.61 | L9: =SUM(Quarter!AM9:AP9) -> 8009.6 | M9: =SUM(Quarter!AQ9:AT9) -> 11748.56 | N9: =SUM(Quarter!AU9:AX9) -> 11292.54 | O9: =SUM(Quarter!AY9:BB9) -> 9690.68 | P9: =SUM(Quarter!BC9:BF9) -> 6552.76 | Q9: =SUM(Quarter!BG9:BJ9) -> 2895.78 | R9: =SUM(Quarter!BK9:BN9) -> 731.12 | S9: =SUM(Quarter!BO9:BR9) -> 623.22 | T9: =SUM(Quarter!BS9:BV9) -> 826.96 | U9: =SUM(Quarter!BW9:BZ9) -> 114.57 | V9: =SUM(Quarter!CA9:CD9) -> 167.01 | W9: =SUM(Quarter!CE9:CH9) -> 450.92 | X9: =SUM(Quarter!CI9:CL9) -> 330.9
A10: Steam Coal | B10: Indonesia | C10: =SUM(Quarter!C10:F10) -> 49.65 | D10: =SUM(Quarter!G10:J10) -> 374.75 | E10: =SUM(Quarter!K10:N10) -> 1532 | F10: =SUM(Quarter!O10:R10) -> 1681.8 | G10: =SUM(Quarter!S10:V10) -> 1954.4 | H10: =SUM(Quarter!W10:Z10) -> 1469.92 | I10: =SUM(Quarter!AA10:AD10) -> 2162.46 | J10: =SUM(Quarter!AE10:AH10) -> 718.73 | K10: =SUM(Quarter!AI10:AL10) -> 270.7 | L10: =SUM(Quarter!AM10:AP10) -> 0 | M10: =SUM(Quarter!AQ10:AT10) -> 0 | N10: =SUM(Quarter!AU10:AX10) -> 0 | O10: =SUM(Quarter!AY10:BB10) -> 0 | P10: =SUM(Quarter!BC10:BF10) -> 0 | Q10: =SUM(Quarter!BG10:BJ10) -> 0 | R10: =SUM(Quarter!BK10:BN10) -> 0.06 | S10: =SUM(Quarter!BO10:BR10) -> 0 | T10: =SUM(Quarter!BS10:BV10) -> 0 | U10: =SUM(Quarter!BW10:BZ10) -> 0 | V10: =SUM(Quarter!CA10:CD10) -> 0.02 | W10: =SUM(Quarter!CE10:CH10) -> 0 | X10: =SUM(Quarter!CI10:CL10) -> 0
A11: Steam Coal | B11: Republic of South Africa | C11: =SUM(Quarter!C11:F11) -> 9948.41 | D11: =SUM(Quarter!G11:J11) -> 12028.09 | E11: =SUM(Quarter!K11:N11) -> 10023.06 | F11: =SUM(Quarter!O11:R11) -> 12862.17 | G11: =SUM(Quarter!S11:V11) -> 12745.67 | H11: =SUM(Quarter!W11:Z11) -> 7940.85 | I11: =SUM(Quarter!AA11:AD11) -> 4249.34 | J11: =SUM(Quarter!AE11:AH11) -> 3033.99 | K11: =SUM(Quarter!AI11:AL11) -> 763.49 | L11: =SUM(Quarter!AM11:AP11) -> 646.97 | M11: =SUM(Quarter!AQ11:AT11) -> 546.04 | N11: =SUM(Quarter!AU11:AX11) -> 477.83 | O11: =SUM(Quarter!AY11:BB11) -> 144.58 | P11: =SUM(Quarter!BC11:BF11) -> 260.32 | Q11: =SUM(Quarter!BG11:BJ11) -> 135.73 | R11: =SUM(Quarter!BK11:BN11) -> 49.5 | S11: =SUM(Quarter!BO11:BR11) -> 118.47 | T11: =SUM(Quarter!BS11:BV11) -> 145.99 | U11: =SUM(Quarter!BW11:BZ11) -> 66.7 | V11: =SUM(Quarter!CA11:CD11) -> 96.54 | W11: =SUM(Quarter!CE11:CH11) -> 614.58 | X11: =SUM(Quarter!CI11:CL11) -> 164.34
A12: Steam Coal | B12: Russia | C12: =SUM(Quarter!C12:F12) -> 3765.37 | D12: =SUM(Quarter!G12:J12) -> 3400.44 | E12: =SUM(Quarter!K12:N12) -> 9676.5 | F12: =SUM(Quarter!O12:R12) -> 16887.97 | G12: =SUM(Quarter!S12:V12) -> 22543.02 | H12: =SUM(Quarter!W12:Z12) -> 20184.51 | I12: =SUM(Quarter!AA12:AD12) -> 21193.44 | J12: =SUM(Quarter!AE12:AH12) -> 18413.61 | K12: =SUM(Quarter!AI12:AL12) -> 9166.1 | L12: =SUM(Quarter!AM12:AP12) -> 12093.11 | M12: =SUM(Quarter!AQ12:AT12) -> 17458.58 | N12: =SUM(Quarter!AU12:AX12) -> 19007.26 | O12: =SUM(Quarter!AY12:BB12) -> 16438.26 | P12: =SUM(Quarter!BC12:BF12) -> 7079.88 | Q12: =SUM(Quarter!BG12:BJ12) -> 1694.81 | R12: =SUM(Quarter!BK12:BN12) -> 2918.92 | S12: =SUM(Quarter!BO12:BR12) -> 3728.03 | T12: =SUM(Quarter!BS12:BV12) -> 1680.25 | U12: =SUM(Quarter!BW12:BZ12) -> 892.6 | V12: =SUM(Quarter!CA12:CD12) -> 1120.55 | W12: =SUM(Quarter!CE12:CH12) -> 980.25 | X12: =SUM(Quarter!CI12:CL12) -> 0
A13: Steam Coal | B13: USA | C13: =SUM(Quarter!C13:F13) -> 254.32 | D13: =SUM(Quarter!G13:J13) -> 166.84 | E13: =SUM(Quarter!K13:N13) -> 743.23 | F13: =SUM(Quarter!O13:R13) -> 265.55 | G13: =SUM(Quarter!S13:V13) -> 707.27 | H13: =SUM(Quarter!W13:Z13) -> 1121.4 | I13: =SUM(Quarter!AA13:AD13) -> 2792.33 | J13: =SUM(Quarter!AE13:AH13) -> 3111.55 | K13: =SUM(Quarter!AI13:AL13) -> 2348.88 | L13: =SUM(Quarter!AM13:AP13) -> 4460.94 | M13: =SUM(Quarter!AQ13:AT13) -> 8858.5 | N13: =SUM(Quarter!AU13:AX13) -> 10997.93 | O13: =SUM(Quarter!AY13:BB13) -> 8163.54 | P13: =SUM(Quarter!BC13:BF13) -> 2943.18 | Q13: =SUM(Quarter!BG13:BJ13) -> 386.37 | R13: =SUM(Quarter!BK13:BN13) -> 1451.72 | S13: =SUM(Quarter!BO13:BR13) -> 2791.16 | T13: =SUM(Quarter!BS13:BV13) -> 798.78 | U13: =SUM(Quarter!BW13:BZ13) -> 20.16 | V13: =SUM(Quarter!CA13:CD13) -> 388.44 | W13: =SUM(Quarter!CE13:CH13) -> 1316.01 | X13: =SUM(Quarter!CI13:CL13) -> 776
A14: Steam Coal | B14: Venezuela | C14: =SUM(Quarter!C14:F14) -> 0 | D14: =SUM(Quarter!G14:J14) -> 0 | E14: =SUM(Quarter!K14:N14) -> 0 | F14: =SUM(Quarter!O14:R14) -> 0 | G14: =SUM(Quarter!S14:V14) -> 0 | H14: =SUM(Quarter!W14:Z14) -> 0 | I14: =SUM(Quarter!AA14:AD14) -> 0 | J14: =SUM(Quarter!AE14:AH14) -> 0 | K14: =SUM(Quarter!AI14:AL14) -> 0 | L14: =SUM(Quarter!AM14:AP14) -> 0 | M14: =SUM(Quarter!AQ14:AT14) -> 0 | N14: =SUM(Quarter!AU14:AX14) -> 0 | O14: =SUM(Quarter!AY14:BB14) -> 0 | P14: =SUM(Quarter!BC14:BF14) -> 0 | Q14: =SUM(Quarter!BG14:BJ14) -> 0 | R14: =SUM(Quarter!BK14:BN14) -> 0 | S14: =SUM(Quarter!BO14:BR14) -> 0 | T14: =SUM(Quarter!BS14:BV14) -> 126.21 | U14: =SUM(Quarter!BW14:BZ14) -> 967.75 | V14: =SUM(Quarter!CA14:CD14) -> 319.25 | W14: =SUM(Quarter!CE14:CH14) -> 75.49 | X14: =SUM(Quarter!CI14:CL14) -> 170.95
A15: Steam Coal | B15: Other countries | C15: =SUM(Quarter!C15:F15) -> 2829.61 | D15: =SUM(Quarter!G15:J15) -> 4362.48 | E15: =SUM(Quarter!K15:N15) -> 817.89 | F15: =SUM(Quarter!O15:R15) -> 229.04 | G15: =SUM(Quarter!S15:V15) -> 0 | H15: =SUM(Quarter!W15:Z15) -> 0 | I15: =SUM(Quarter!AA15:AD15) -> 59 | J15: =SUM(Quarter!AE15:AH15) -> 103.35 | K15: =SUM(Quarter!AI15:AL15) -> 85.79 | L15: =SUM(Quarter!AM15:AP15) -> 204.79 | M15: =SUM(Quarter!AQ15:AT15) -> 271.81 | N15: =SUM(Quarter!AU15:AX15) -> 715.88 | O15: =SUM(Quarter!AY15:BB15) -> 549.03 | P15: =SUM(Quarter!BC15:BF15) -> 302.94 | Q15: =SUM(Quarter!BG15:BJ15) -> 589.49 | R15: =SUM(Quarter!BK15:BN15) -> 244.23 | S15: =SUM(Quarter!BO15:BR15) -> 33.16 | T15: =SUM(Quarter!BS15:BV15) -> 63.96 | U15: =SUM(Quarter!BW15:BZ15) -> 62.46 | V15: =SUM(Quarter!CA15:CD15) -> 73.89 | W15: =SUM(Quarter!CE15:CH15) -> 349.87 | X15: =SUM(Quarter!CI15:CL15) -> 133.26
A16: Steam Coal | B16: Total all countries | C16: =SUM(Quarter!C16:F16) -> 21894.72 | D16: =SUM(Quarter!G16:J16) -> 25097.79 | E16: =SUM(Quarter!K16:N16) -> 29613.86 | F16: =SUM(Quarter!O16:R16) -> 37230.29 | G16: =SUM(Quarter!S16:V16) -> 43608.76 | H16: =SUM(Quarter!W16:Z16) -> 35746.43 | I16: =SUM(Quarter!AA16:AD16) -> 37382.25 | J16: =SUM(Quarter!AE16:AH16) -> 32793.83 | K16: =SUM(Quarter!AI16:AL16) -> 19751.46 | L16: =SUM(Quarter!AM16:AP16) -> 26471.8 | M16: =SUM(Quarter!AQ16:AT16) -> 39619.31 | N16: =SUM(Quarter!AU16:AX16) -> 44204.2 | O16: =SUM(Quarter!AY16:BB16) -> 35753.81 | P16: =SUM(Quarter!BC16:BF16) -> 17665.46 | Q16: =SUM(Quarter!BG16:BJ16) -> 6038.86 | R16: =SUM(Quarter!BK16:BN16) -> 5689.05 | S16: =SUM(Quarter!BO16:BR16) -> 7547.73 | T16: =SUM(Quarter!BS16:BV16) -> 3949.31 | U16: =SUM(Quarter!BW16:BZ16) -> 2399.81 | V16: =SUM(Quarter!CA16:CD16) -> 2422.93 | W16: =SUM(Quarter!CE16:CH16) -> 4521.23 | X16: =SUM(Quarter!CI16:CL16) -> 2096.07
A17: Coking Coal | B17: European Union | C17: =SUM(Quarter!C17:F17) -> 0 | D17: =SUM(Quarter!G17:J17) -> 13.68 | E17: =SUM(Quarter!K17:N17) -> 0 | F17: =SUM(Quarter!O17:R17) -> 0 | G17: =SUM(Quarter!S17:V17) -> 0 | H17: =SUM(Quarter!W17:Z17) -> 7.32 | I17: =SUM(Quarter!AA17:AD17) -> 0 | J17: =SUM(Quarter!AE17:AH17) -> 0 | K17: =SUM(Quarter!AI17:AL17) -> 0.94 | L17: =SUM(Quarter!AM17:AP17) -> 2.53 | M17: =SUM(Quarter!AQ17:AT17) -> 3.93 | N17: =SUM(Quarter!AU17:AX17) -> 7.74 | O17: =SUM(Quarter!AY17:BB17) -> 31.87 | P17: =SUM(Quarter!BC17:BF17) -> 33.1 | Q17: =SUM(Quarter!BG17:BJ17) -> 42.53 | R17: =SUM(Quarter!BK17:BN17) -> 29.09 | S17: =SUM(Quarter!BO17:BR17) -> 28.73 | T17: =SUM(Quarter!BS17:BV17) -> 33.4 | U17: =SUM(Quarter!BW17:BZ17) -> 34.01 | V17: =SUM(Quarter!CA17:CD17) -> 34.27 | W17: =SUM(Quarter!CE17:CH17) -> 194.75 | X17: =SUM(Quarter!CI17:CL17) -> 62.5
A18: Coking Coal | B18: Australia | C18: =SUM(Quarter!C18:F18) -> 4233 | D18: =SUM(Quarter!G18:J18) -> 4180.11 | E18: =SUM(Quarter!K18:N18) -> 4140.11 | F18: =SUM(Quarter!O18:R18) -> 3467.91 | G18: =SUM(Quarter!S18:V18) -> 3766.39 | H18: =SUM(Quarter!W18:Z18) -> 3908.68 | I18: =SUM(Quarter!AA18:AD18) -> 3202.59 | J18: =SUM(Quarter!AE18:AH18) -> 2534.82 | K18: =SUM(Quarter!AI18:AL18) -> 3437.37 | L18: =SUM(Quarter!AM18:AP18) -> 3380.11 | M18: =SUM(Quarter!AQ18:AT18) -> 2360.27 | N18: =SUM(Quarter!AU18:AX18) -> 2057.93 | O18: =SUM(Quarter!AY18:BB18) -> 1248.76 | P18: =SUM(Quarter!BC18:BF18) -> 909.82 | Q18: =SUM(Quarter!BG18:BJ18) -> 777.59 | R18: =SUM(Quarter!BK18:BN18) -> 749.16 | S18: =SUM(Quarter!BO18:BR18) -> 630.26 | T18: =SUM(Quarter!BS18:BV18) -> 423.21 | U18: =SUM(Quarter!BW18:BZ18) -> 319.65 | V18: =SUM(Quarter!CA18:CD18) -> 511.45 | W18: =SUM(Quarter!CE18:CH18) -> 328.99 | X18: =SUM(Quarter!CI18:CL18) -> 215.54
A19: Coking Coal | B19: Canada | C19: =SUM(Quarter!C19:F19) -> 778.84 | D19: =SUM(Quarter!G19:J19) -> 792.63 | E19: =SUM(Quarter!K19:N19) -> 715.15 | F19: =SUM(Quarter!O19:R19) -> 1092 | G19: =SUM(Quarter!S19:V19) -> 1276.68 | H19: =SUM(Quarter!W19:Z19) -> 1688.84 | I19: =SUM(Quarter!AA19:AD19) -> 1378.41 | J19: =SUM(Quarter!AE19:AH19) -> 203.91 | K19: =SUM(Quarter!AI19:AL19) -> 457.57 | L19: =SUM(Quarter!AM19:AP19) -> 362.88 | M19: =SUM(Quarter!AQ19:AT19) -> 154.48 | N19: =SUM(Quarter!AU19:AX19) -> 55.95 | O19: =SUM(Quarter!AY19:BB19) -> 434.28 | P19: =SUM(Quarter!BC19:BF19) -> 333.9 | Q19: =SUM(Quarter!BG19:BJ19) -> 0 | R19: =SUM(Quarter!BK19:BN19) -> 36.08 | S19: =SUM(Quarter!BO19:BR19) -> 0 | T19: =SUM(Quarter!BS19:BV19) -> 0 | U19: =SUM(Quarter!BW19:BZ19) -> 0 | V19: =SUM(Quarter!CA19:CD19) -> 0 | W19: =SUM(Quarter!CE19:CH19) -> 63.1 | X19: =SUM(Quarter!CI19:CL19) -> 220.35
A20: Coking Coal | B20: China | C20: =SUM(Quarter!C20:F20) -> 0 | D20: =SUM(Quarter!G20:J20) -> 0 | E20: =SUM(Quarter!K20:N20) -> 0 | F20: =SUM(Quarter!O20:R20) -> 0 | G20: =SUM(Quarter!S20:V20) -> 0 | H20: =SUM(Quarter!W20:Z20) -> 65.33 | I20: =SUM(Quarter!AA20:AD20) -> 0 | J20: =SUM(Quarter!AE20:AH20) -> 0 | K20: =SUM(Quarter!AI20:AL20) -> 0 | L20: =SUM(Quarter!AM20:AP20) -> 0 | M20: =SUM(Quarter!AQ20:AT20) -> 0 | N20: =SUM(Quarter!AU20:AX20) -> 0 | O20: =SUM(Quarter!AY20:BB20) -> 0 | P20: =SUM(Quarter!BC20:BF20) -> 0 | Q20: =SUM(Quarter!BG20:BJ20) -> 0 | R20: =SUM(Quarter!BK20:BN20) -> 64.42 | S20: =SUM(Quarter!BO20:BR20) -> 0 | T20: =SUM(Quarter!BS20:BV20) -> 0 | U20: =SUM(Quarter!BW20:BZ20) -> 0 | V20: =SUM(Quarter!CA20:CD20) -> 0 | W20: =SUM(Quarter!CE20:CH20) -> 0 | X20: =SUM(Quarter!CI20:CL20) -> 44.22
A21: Coking Coal | B21: Colombia | C21: =SUM(Quarter!C21:F21) -> 0 | D21: =SUM(Quarter!G21:J21) -> 122.81 | E21: =SUM(Quarter!K21:N21) -> 0 | F21: =SUM(Quarter!O21:R21) -> 0 | G21: =SUM(Quarter!S21:V21) -> 0 | H21: =SUM(Quarter!W21:Z21) -> 0 | I21: =SUM(Quarter!AA21:AD21) -> 0 | J21: =SUM(Quarter!AE21:AH21) -> 0 | K21: =SUM(Quarter!AI21:AL21) -> 69.77 | L21: =SUM(Quarter!AM21:AP21) -> 0 | M21: =SUM(Quarter!AQ21:AT21) -> 0 | N21: =SUM(Quarter!AU21:AX21) -> 106.23 | O21: =SUM(Quarter!AY21:BB21) -> 0 | P21: =SUM(Quarter!BC21:BF21) -> 0 | Q21: =SUM(Quarter!BG21:BJ21) -> 0 | R21: =SUM(Quarter!BK21:BN21) -> 0 | S21: =SUM(Quarter!BO21:BR21) -> 0 | T21: =SUM(Quarter!BS21:BV21) -> 0 | U21: =SUM(Quarter!BW21:BZ21) -> 0 | V21: =SUM(Quarter!CA21:CD21) -> 0 | W21: =SUM(Quarter!CE21:CH21) -> 0 | X21: =SUM(Quarter!CI21:CL21) -> 0
A22: Coking Coal | B22: Indonesia | C22: =SUM(Quarter!C22:F22) -> 0 | D22: =SUM(Quarter!G22:J22) -> 0 | E22: =SUM(Quarter!K22:N22) -> 0 | F22: =SUM(Quarter!O22:R22) -> 0 | G22: =SUM(Quarter!S22:V22) -> 0 | H22: =SUM(Quarter!W22:Z22) -> 0 | I22: =SUM(Quarter!AA22:AD22) -> 0 | J22: =SUM(Quarter!AE22:AH22) -> 0 | K22: =SUM(Quarter!AI22:AL22) -> 0 | L22: =SUM(Quarter!AM22:AP22) -> 0 | M22: =SUM(Quarter!AQ22:AT22) -> 0 | N22: =SUM(Quarter!AU22:AX22) -> 0 | O22: =SUM(Quarter!AY22:BB22) -> 0 | P22: =SUM(Quarter!BC22:BF22) -> 0 | Q22: =SUM(Quarter!BG22:BJ22) -> 0 | R22: =SUM(Quarter!BK22:BN22) -> 0 | S22: =SUM(Quarter!BO22:BR22) -> 0 | T22: =SUM(Quarter!BS22:BV22) -> 0 | U22: =SUM(Quarter!BW22:BZ22) -> 0 | V22: =SUM(Quarter!CA22:CD22) -> 0 | W22: =SUM(Quarter!CE22:CH22) -> 0 | X22: =SUM(Quarter!CI22:CL22) -> 0
A23: Coking Coal | B23: Republic of South Africa | C23: =SUM(Quarter!C23:F23) -> 0 | D23: =SUM(Quarter!G23:J23) -> 231.84 | E23: =SUM(Quarter!K23:N23) -> 0 | F23: =SUM(Quarter!O23:R23) -> 0 | G23: =SUM(Quarter!S23:V23) -> 0 | H23: =SUM(Quarter!W23:Z23) -> 0 | I23: =SUM(Quarter!AA23:AD23) -> 0 | J23: =SUM(Quarter!AE23:AH23) -> 0 | K23: =SUM(Quarter!AI23:AL23) -> 0 | L23: =SUM(Quarter!AM23:AP23) -> 0 | M23: =SUM(Quarter!AQ23:AT23) -> 0 | N23: =SUM(Quarter!AU23:AX23) -> 0 | O23: =SUM(Quarter!AY23:BB23) -> 0 | P23: =SUM(Quarter!BC23:BF23) -> 0 | Q23: =SUM(Quarter!BG23:BJ23) -> 0 | R23: =SUM(Quarter!BK23:BN23) -> 0 | S23: =SUM(Quarter!BO23:BR23) -> 0 | T23: =SUM(Quarter!BS23:BV23) -> 0 | U23: =SUM(Quarter!BW23:BZ23) -> 0 | V23: =SUM(Quarter!CA23:CD23) -> 0 | W23: =SUM(Quarter!CE23:CH23) -> 0 | X23: =SUM(Quarter!CI23:CL23) -> 0
A24: Coking Coal | B24: Russia | C24: =SUM(Quarter!C24:F24) -> 34.05 | D24: =SUM(Quarter!G24:J24) -> 97.85 | E24: =SUM(Quarter!K24:N24) -> 148.3 | F24: =SUM(Quarter!O24:R24) -> 707.46 | G24: =SUM(Quarter!S24:V24) -> 273.33 | H24: =SUM(Quarter!W24:Z24) -> 356.99 | I24: =SUM(Quarter!AA24:AD24) -> 295.58 | J24: =SUM(Quarter!AE24:AH24) -> 310.15 | K24: =SUM(Quarter!AI24:AL24) -> 375.86 | L24: =SUM(Quarter!AM24:AP24) -> 239.39 | M24: =SUM(Quarter!AQ24:AT24) -> 594.69 | N24: =SUM(Quarter!AU24:AX24) -> 1060.47 | O24: =SUM(Quarter!AY24:BB24) -> 1395.6 | P24: =SUM(Quarter!BC24:BF24) -> 1290.52 | Q24: =SUM(Quarter!BG24:BJ24) -> 729.67 | R24: =SUM(Quarter!BK24:BN24) -> 914.72 | S24: =SUM(Quarter!BO24:BR24) -> 881.43 | T24: =SUM(Quarter!BS24:BV24) -> 709.99 | U24: =SUM(Quarter!BW24:BZ24) -> 734.27 | V24: =SUM(Quarter!CA24:CD24) -> 827.02 | W24: =SUM(Quarter!CE24:CH24) -> 28.98 | X24: =SUM(Quarter!CI24:CL24) -> 0
A25: Coking Coal | B25: USA | C25: =SUM(Quarter!C25:F25) -> 1267.44 | D25: =SUM(Quarter!G25:J25) -> 980.92 | E25: =SUM(Quarter!K25:N25) -> 1341.76 | F25: =SUM(Quarter!O25:R25) -> 1283.74 | G25: =SUM(Quarter!S25:V25) -> 1415.33 | H25: =SUM(Quarter!W25:Z25) -> 1377.83 | I25: =SUM(Quarter!AA25:AD25) -> 1472.21 | J25: =SUM(Quarter!AE25:AH25) -> 1609.85 | K25: =SUM(Quarter!AI25:AL25) -> 2275.52 | L25: =SUM(Quarter!AM25:AP25) -> 1873.2 | M25: =SUM(Quarter!AQ25:AT25) -> 1931.91 | N25: =SUM(Quarter!AU25:AX25) -> 2667.61 | O25: =SUM(Quarter!AY25:BB25) -> 3018.94 | P25: =SUM(Quarter!BC25:BF25) -> 2075.04 | Q25: =SUM(Quarter!BG25:BJ25) -> 1044.12 | R25: =SUM(Quarter!BK25:BN25) -> 898.99 | S25: =SUM(Quarter!BO25:BR25) -> 766.24 | T25: =SUM(Quarter!BS25:BV25) -> 970 | U25: =SUM(Quarter!BW25:BZ25) -> 970.64 | V25: =SUM(Quarter!CA25:CD25) -> 739.3 | W25: =SUM(Quarter!CE25:CH25) -> 1128.04 | X25: =SUM(Quarter!CI25:CL25) -> 796.9
A26: Coking Coal | B26: Venezuela | C26: =SUM(Quarter!C26:F26) -> 0 | D26: =SUM(Quarter!G26:J26) -> 0 | E26: =SUM(Quarter!K26:N26) -> 0 | F26: =SUM(Quarter!O26:R26) -> 0 | G26: =SUM(Quarter!S26:V26) -> 0 | H26: =SUM(Quarter!W26:Z26) -> 0 | I26: =SUM(Quarter!AA26:AD26) -> 0 | J26: =SUM(Quarter!AE26:AH26) -> 0 | K26: =SUM(Quarter!AI26:AL26) -> 0 | L26: =SUM(Quarter!AM26:AP26) -> 0 | M26: =SUM(Quarter!AQ26:AT26) -> 0 | N26: =SUM(Quarter!AU26:AX26) -> 0 | O26: =SUM(Quarter!AY26:BB26) -> 0 | P26: =SUM(Quarter!BC26:BF26) -> 0 | Q26: =SUM(Quarter!BG26:BJ26) -> 0 | R26: =SUM(Quarter!BK26:BN26) -> 0 | S26: =SUM(Quarter!BO26:BR26) -> 0 | T26: =SUM(Quarter!BS26:BV26) -> 0 | U26: =SUM(Quarter!BW26:BZ26) -> 0 | V26: =SUM(Quarter!CA26:CD26) -> 0 | W26: =SUM(Quarter!CE26:CH26) -> 0 | X26: =SUM(Quarter!CI26:CL26) -> 0
A27: Coking Coal | B27: Other countries | C27: =SUM(Quarter!C27:F27) -> 1.21 | D27: =SUM(Quarter!G27:J27) -> 54.06 | E27: =SUM(Quarter!K27:N27) -> 0 | F27: =SUM(Quarter!O27:R27) -> 0 | G27: =SUM(Quarter!S27:V27) -> 42.76 | H27: =SUM(Quarter!W27:Z27) -> 76.04 | I27: =SUM(Quarter!AA27:AD27) -> 0 | J27: =SUM(Quarter!AE27:AH27) -> 605.43 | K27: =SUM(Quarter!AI27:AL27) -> 17.29 | L27: =SUM(Quarter!AM27:AP27) -> 49.6 | M27: =SUM(Quarter!AQ27:AT27) -> 25.23 | N27: =SUM(Quarter!AU27:AX27) -> 289.92 | O27: =SUM(Quarter!AY27:BB27) -> 214.41 | P27: =SUM(Quarter!BC27:BF27) -> 107.77 | Q27: =SUM(Quarter!BG27:BJ27) -> 187.12 | R27: =SUM(Quarter!BK27:BN27) -> 0 | S27: =SUM(Quarter!BO27:BR27) -> 110.72 | T27: =SUM(Quarter!BS27:BV27) -> 40.73 | U27: =SUM(Quarter!BW27:BZ27) -> 0 | V27: =SUM(Quarter!CA27:CD27) -> 0 | W27: =SUM(Quarter!CE27:CH27) -> 0 | X27: =SUM(Quarter!CI27:CL27) -> 0
A28: Coking Coal | B28: Total all countries | C28: =SUM(Quarter!C28:F28) -> 6314.55 | D28: =SUM(Quarter!G28:J28) -> 6473.92 | E28: =SUM(Quarter!K28:N28) -> 6345.3 | F28: =SUM(Quarter!O28:R28) -> 6551.11 | G28: =SUM(Quarter!S28:V28) -> 6774.47 | H28: =SUM(Quarter!W28:Z28) -> 7481.04 | I28: =SUM(Quarter!AA28:AD28) -> 6348.79 | J28: =SUM(Quarter!AE28:AH28) -> 5264.17 | K28: =SUM(Quarter!AI28:AL28) -> 6634.31 | L28: =SUM(Quarter!AM28:AP28) -> 5907.7 | M28: =SUM(Quarter!AQ28:AT28) -> 5070.51 | N28: =SUM(Quarter!AU28:AX28) -> 6245.82 | O28: =SUM(Quarter!AY28:BB28) -> 6343.86 | P28: =SUM(Quarter!BC28:BF28) -> 4750.17 | Q28: =SUM(Quarter!BG28:BJ28) -> 2781.05 | R28: =SUM(Quarter!BK28:BN28) -> 2692.46 | S28: =SUM(Quarter!BO28:BR28) -> 2417.37 | T28: =SUM(Quarter!BS28:BV28) -> 2177.35 | U28: =SUM(Quarter!BW28:BZ28) -> 2058.57 | V28: =SUM(Quarter!CA28:CD28) -> 2112.03 | W28: =SUM(Quarter!CE28:CH28) -> 1743.87 | X28: =SUM(Quarter!CI28:CL28) -> 1339.51
A29: Anthracite | B29: European Union | C29: =SUM(Quarter!C29:F29) -> 59.16 | D29: =SUM(Quarter!G29:J29) -> 40.89 | E29: =SUM(Quarter!K29:N29) -> 54.23 | F29: =SUM(Quarter!O29:R29) -> 37.02 | G29: =SUM(Quarter!S29:V29) -> 12.64 | H29: =SUM(Quarter!W29:Z29) -> 5.44 | I29: =SUM(Quarter!AA29:AD29) -> 10.52 | J29: =SUM(Quarter!AE29:AH29) -> 40.91 | K29: =SUM(Quarter!AI29:AL29) -> 72.04 | L29: =SUM(Quarter!AM29:AP29) -> 96.43 | M29: =SUM(Quarter!AQ29:AT29) -> 106.08 | N29: =SUM(Quarter!AU29:AX29) -> 109.27 | O29: =SUM(Quarter!AY29:BB29) -> 42.09 | P29: =SUM(Quarter!BC29:BF29) -> 54.86 | Q29: =SUM(Quarter!BG29:BJ29) -> 59.75 | R29: =SUM(Quarter!BK29:BN29) -> 33.39 | S29: =SUM(Quarter!BO29:BR29) -> 61.76 | T29: =SUM(Quarter!BS29:BV29) -> 79.53 | U29: =SUM(Quarter!BW29:BZ29) -> 60.68 | V29: =SUM(Quarter!CA29:CD29) -> 46.06 | W29: =SUM(Quarter!CE29:CH29) -> 63.92 | X29: =SUM(Quarter!CI29:CL29) -> 39.07
A30: Anthracite | B30: Australia | C30: =SUM(Quarter!C30:F30) -> 20.54 | D30: =SUM(Quarter!G30:J30) -> 0 | E30: =SUM(Quarter!K30:N30) -> 0 | F30: =SUM(Quarter!O30:R30) -> 0 | G30: =SUM(Quarter!S30:V30) -> 0 | H30: =SUM(Quarter!W30:Z30) -> 0 | I30: =SUM(Quarter!AA30:AD30) -> 0 | J30: =SUM(Quarter!AE30:AH30) -> 0 | K30: =SUM(Quarter!AI30:AL30) -> 11.75 | L30: =SUM(Quarter!AM30:AP30) -> 0 | M30: =SUM(Quarter!AQ30:AT30) -> 0 | N30: =SUM(Quarter!AU30:AX30) -> 0 | O30: =SUM(Quarter!AY30:BB30) -> 0 | P30: =SUM(Quarter!BC30:BF30) -> 0 | Q30: =SUM(Quarter!BG30:BJ30) -> 0 | R30: =SUM(Quarter!BK30:BN30) -> 0 | S30: =SUM(Quarter!BO30:BR30) -> 0 | T30: =SUM(Quarter!BS30:BV30) -> 0 | U30: =SUM(Quarter!BW30:BZ30) -> 0 | V30: =SUM(Quarter!CA30:CD30) -> 0 | W30: =SUM(Quarter!CE30:CH30) -> 4.38 | X30: =SUM(Quarter!CI30:CL30) -> 0
A31: Anthracite | B31: Canada | C31: =SUM(Quarter!C31:F31) -> 0 | D31: =SUM(Quarter!G31:J31) -> 0 | E31: =SUM(Quarter!K31:N31) -> 0 | F31: =SUM(Quarter!O31:R31) -> 0 | G31: =SUM(Quarter!S31:V31) -> 0 | H31: =SUM(Quarter!W31:Z31) -> 0 | I31: =SUM(Quarter!AA31:AD31) -> 0 | J31: =SUM(Quarter!AE31:AH31) -> 0 | K31: =SUM(Quarter!AI31:AL31) -> 0 | L31: =SUM(Quarter!AM31:AP31) -> 0 | M31: =SUM(Quarter!AQ31:AT31) -> 0 | N31: =SUM(Quarter!AU31:AX31) -> 0 | O31: =SUM(Quarter!AY31:BB31) -> 0 | P31: =SUM(Quarter!BC31:BF31) -> 0 | Q31: =SUM(Quarter!BG31:BJ31) -> 0 | R31: =SUM(Quarter!BK31:BN31) -> 0 | S31: =SUM(Quarter!BO31:BR31) -> 0 | T31: =SUM(Quarter!BS31:BV31) -> 0 | U31: =SUM(Quarter!BW31:BZ31) -> 0 | V31: =SUM(Quarter!CA31:CD31) -> 0 | W31: =SUM(Quarter!CE31:CH31) -> 5.63 | X31: =SUM(Quarter!CI31:CL31) -> 0
A32: Anthracite | B32: China | C32: =SUM(Quarter!C32:F32) -> 38.47 | D32: =SUM(Quarter!G32:J32) -> 40.24 | E32: =SUM(Quarter!K32:N32) -> 42.45 | F32: =SUM(Quarter!O32:R32) -> 24.53 | G32: =SUM(Quarter!S32:V32) -> 13.99 | H32: =SUM(Quarter!W32:Z32) -> 48.36 | I32: =SUM(Quarter!AA32:AD32) -> 50.88 | J32: =SUM(Quarter!AE32:AH32) -> 13.77 | K32: =SUM(Quarter!AI32:AL32) -> 16.51 | L32: =SUM(Quarter!AM32:AP32) -> 51.38 | M32: =SUM(Quarter!AQ32:AT32) -> 12.71 | N32: =SUM(Quarter!AU32:AX32) -> 33.39 | O32: =SUM(Quarter!AY32:BB32) -> 28.58 | P32: =SUM(Quarter!BC32:BF32) -> 22.57 | Q32: =SUM(Quarter!BG32:BJ32) -> 11.39 | R32: =SUM(Quarter!BK32:BN32) -> 10.11 | S32: =SUM(Quarter!BO32:BR32) -> 4.44 | T32: =SUM(Quarter!BS32:BV32) -> 6.96 | U32: =SUM(Quarter!BW32:BZ32) -> 6.7 | V32: =SUM(Quarter!CA32:CD32) -> 5.89 | W32: =SUM(Quarter!CE32:CH32) -> 0.02 | X32: =SUM(Quarter!CI32:CL32) -> 0.13
A33: Anthracite | B33: Colombia | C33: =SUM(Quarter!C33:F33) -> 23.52 | D33: =SUM(Quarter!G33:J33) -> 0 | E33: =SUM(Quarter!K33:N33) -> 0 | F33: =SUM(Quarter!O33:R33) -> 0 | G33: =SUM(Quarter!S33:V33) -> 0 | H33: =SUM(Quarter!W33:Z33) -> 12.77 | I33: =SUM(Quarter!AA33:AD33) -> 0 | J33: =SUM(Quarter!AE33:AH33) -> 0 | K33: =SUM(Quarter!AI33:AL33) -> 11.23 | L33: =SUM(Quarter!AM33:AP33) -> 0 | M33: =SUM(Quarter!AQ33:AT33) -> 0 | N33: =SUM(Quarter!AU33:AX33) -> 0 | O33: =SUM(Quarter!AY33:BB33) -> 9.28 | P33: =SUM(Quarter!BC33:BF33) -> 0 | Q33: =SUM(Quarter!BG33:BJ33) -> 0 | R33: =SUM(Quarter!BK33:BN33) -> 0 | S33: =SUM(Quarter!BO33:BR33) -> 0 | T33: =SUM(Quarter!BS33:BV33) -> 0 | U33: =SUM(Quarter!BW33:BZ33) -> 0 | V33: =SUM(Quarter!CA33:CD33) -> 0 | W33: =SUM(Quarter!CE33:CH33) -> 0 | X33: =SUM(Quarter!CI33:CL33) -> 1.09
A34: Anthracite | B34: Indonesia | C34: =SUM(Quarter!C34:F34) -> 0 | D34: =SUM(Quarter!G34:J34) -> 0 | E34: =SUM(Quarter!K34:N34) -> 0 | F34: =SUM(Quarter!O34:R34) -> 0 | G34: =SUM(Quarter!S34:V34) -> 0 | H34: =SUM(Quarter!W34:Z34) -> 0 | I34: =SUM(Quarter!AA34:AD34) -> 0 | J34: =SUM(Quarter!AE34:AH34) -> 0 | K34: =SUM(Quarter!AI34:AL34) -> 0 | L34: =SUM(Quarter!AM34:AP34) -> 0 | M34: =SUM(Quarter!AQ34:AT34) -> 0 | N34: =SUM(Quarter!AU34:AX34) -> 0 | O34: =SUM(Quarter!AY34:BB34) -> 0 | P34: =SUM(Quarter!BC34:BF34) -> 0 | Q34: =SUM(Quarter!BG34:BJ34) -> 0 | R34: =SUM(Quarter!BK34:BN34) -> 0 | S34: =SUM(Quarter!BO34:BR34) -> 0 | T34: =SUM(Quarter!BS34:BV34) -> 0 | U34: =SUM(Quarter!BW34:BZ34) -> 0.22 | V34: =SUM(Quarter!CA34:CD34) -> 0.01 | W34: =SUM(Quarter!CE34:CH34) -> 0.07 | X34: =SUM(Quarter!CI34:CL34) -> 0.01
A35: Anthracite | B35: Republic of South Africa | C35: =SUM(Quarter!C35:F35) -> 114.77 | D35: =SUM(Quarter!G35:J35) -> 109.54 | E35: =SUM(Quarter!K35:N35) -> 32.02 | F35: =SUM(Quarter!O35:R35) -> 48.95 | G35: =SUM(Quarter!S35:V35) -> 41.8 | H35: =SUM(Quarter!W35:Z35) -> 22.73 | I35: =SUM(Quarter!AA35:AD35) -> 31.44 | J35: =SUM(Quarter!AE35:AH35) -> 19.5 | K35: =SUM(Quarter!AI35:AL35) -> 0 | L35: =SUM(Quarter!AM35:AP35) -> 0 | M35: =SUM(Quarter!AQ35:AT35) -> 6.51 | N35: =SUM(Quarter!AU35:AX35) -> 6.16 | O35: =SUM(Quarter!AY35:BB35) -> 6.83 | P35: =SUM(Quarter!BC35:BF35) -> 6.39 | Q35: =SUM(Quarter!BG35:BJ35) -> 0 | R35: =SUM(Quarter!BK35:BN35) -> 0 | S35: =SUM(Quarter!BO35:BR35) -> 0 | T35: =SUM(Quarter!BS35:BV35) -> 0 | U35: =SUM(Quarter!BW35:BZ35) -> 0 | V35: =SUM(Quarter!CA35:CD35) -> 0 | W35: =SUM(Quarter!CE35:CH35) -> 0 | X35: =SUM(Quarter!CI35:CL35) -> 3.44
A36: Anthracite | B36: Russia | C36: =SUM(Quarter!C36:F36) -> 133.5 | D36: =SUM(Quarter!G36:J36) -> 14.38 | E36: =SUM(Quarter!K36:N36) -> 15.05 | F36: =SUM(Quarter!O36:R36) -> 75.77 | G36: =SUM(Quarter!S36:V36) -> 36.6 | H36: =SUM(Quarter!W36:Z36) -> 11.23 | I36: =SUM(Quarter!AA36:AD36) -> 34.57 | J36: =SUM(Quarter!AE36:AH36) -> 34.37 | K36: =SUM(Quarter!AI36:AL36) -> 43.14 | L36: =SUM(Quarter!AM36:AP36) -> 0 | M36: =SUM(Quarter!AQ36:AT36) -> 0 | N36: =SUM(Quarter!AU36:AX36) -> 11.87 | O36: =SUM(Quarter!AY36:BB36) -> 35.38 | P36: =SUM(Quarter!BC36:BF36) -> 10.08 | Q36: =SUM(Quarter!BG36:BJ36) -> 8.12 | R36: =SUM(Quarter!BK36:BN36) -> 49.59 | S36: =SUM(Quarter!BO36:BR36) -> 52.14 | T36: =SUM(Quarter!BS36:BV36) -> 4.19 | U36: =SUM(Quarter!BW36:BZ36) -> 0 | V36: =SUM(Quarter!CA36:CD36) -> 20.33 | W36: =SUM(Quarter!CE36:CH36) -> 0 | X36: =SUM(Quarter!CI36:CL36) -> 0
A37: Anthracite | B37: USA | C37: =SUM(Quarter!C37:F37) -> 27.07 | D37: =SUM(Quarter!G37:J37) -> 45.36 | E37: =SUM(Quarter!K37:N37) -> 1.6 | F37: =SUM(Quarter!O37:R37) -> 0 | G37: =SUM(Quarter!S37:V37) -> 0 | H37: =SUM(Quarter!W37:Z37) -> 0 | I37: =SUM(Quarter!AA37:AD37) -> 15.82 | J37: =SUM(Quarter!AE37:AH37) -> 0 | K37: =SUM(Quarter!AI37:AL37) -> 0.28 | L37: =SUM(Quarter!AM37:AP37) -> 0.06 | M37: =SUM(Quarter!AQ37:AT37) -> 0.04 | N37: =SUM(Quarter!AU37:AX37) -> 0.4 | O37: =SUM(Quarter!AY37:BB37) -> 0 | P37: =SUM(Quarter!BC37:BF37) -> 0.17 | Q37: =SUM(Quarter!BG37:BJ37) -> 3.24 | R37: =SUM(Quarter!BK37:BN37) -> 0.87 | S37: =SUM(Quarter!BO37:BR37) -> 0.08 | T37: =SUM(Quarter!BS37:BV37) -> 0 | U37: =SUM(Quarter!BW37:BZ37) -> 0 | V37: =SUM(Quarter!CA37:CD37) -> 0.41 | W37: =SUM(Quarter!CE37:CH37) -> 5.31 | X37: =SUM(Quarter!CI37:CL37) -> 0
A38: Anthracite | B38: Venezuela | C38: =SUM(Quarter!C38:F38) -> 0 | D38: =SUM(Quarter!G38:J38) -> 0 | E38: =SUM(Quarter!K38:N38) -> 0 | F38: =SUM(Quarter!O38:R38) -> 0 | G38: =SUM(Quarter!S38:V38) -> 0 | H38: =SUM(Quarter!W38:Z38) -> 0 | I38: =SUM(Quarter!AA38:AD38) -> 0 | J38: =SUM(Quarter!AE38:AH38) -> 0 | K38: =SUM(Quarter!AI38:AL38) -> 0 | L38: =SUM(Quarter!AM38:AP38) -> 0 | M38: =SUM(Quarter!AQ38:AT38) -> 0 | N38: =SUM(Quarter!AU38:AX38) -> 0 | O38: =SUM(Quarter!AY38:BB38) -> 0 | P38: =SUM(Quarter!BC38:BF38) -> 0 | Q38: =SUM(Quarter!BG38:BJ38) -> 0 | R38: =SUM(Quarter!BK38:BN38) -> 0 | S38: =SUM(Quarter!BO38:BR38) -> 0 | T38: =SUM(Quarter!BS38:BV38) -> 0 | U38: =SUM(Quarter!BW38:BZ38) -> 0 | V38: =SUM(Quarter!CA38:CD38) -> 0 | W38: =SUM(Quarter!CE38:CH38) -> 0 | X38: =SUM(Quarter!CI38:CL38) -> 0
A39: Anthracite | B39: Other countries | C39: =SUM(Quarter!C39:F39) -> 59.89 | D39: =SUM(Quarter!G39:J39) -> 69.05 | E39: =SUM(Quarter!K39:N39) -> 48.19 | F39: =SUM(Quarter!O39:R39) -> 0 | G39: =SUM(Quarter!S39:V39) -> 39.8 | H39: =SUM(Quarter!W39:Z39) -> 35.76 | I39: =SUM(Quarter!AA39:AD39) -> 1 | J39: =SUM(Quarter!AE39:AH39) -> 0 | K39: =SUM(Quarter!AI39:AL39) -> 0 | L39: =SUM(Quarter!AM39:AP39) -> 0.01 | M39: =SUM(Quarter!AQ39:AT39) -> 0 | N39: =SUM(Quarter!AU39:AX39) -> 0.06 | O39: =SUM(Quarter!AY39:BB39) -> 5.17 | P39: =SUM(Quarter!BC39:BF39) -> 8.36 | Q39: =SUM(Quarter!BG39:BJ39) -> 11.3 | R39: =SUM(Quarter!BK39:BN39) -> 22.46 | S39: =SUM(Quarter!BO39:BR39) -> 0.7 | T39: =SUM(Quarter!BS39:BV39) -> 11.64 | U39: =SUM(Quarter!BW39:BZ39) -> 5.13 | V39: =SUM(Quarter!CA39:CD39) -> 0.03 | W39: =SUM(Quarter!CE39:CH39) -> 13.12 | X39: =SUM(Quarter!CI39:CL39) -> 3.31
A40: Anthracite | B40: Total all countries | C40: =SUM(Quarter!C40:F40) -> 476.94 | D40: =SUM(Quarter!G40:J40) -> 319.44 | E40: =SUM(Quarter!K40:N40) -> 193.65 | F40: =SUM(Quarter!O40:R40) -> 187.07 | G40: =SUM(Quarter!S40:V40) -> 144.84 | H40: =SUM(Quarter!W40:Z40) -> 136.65 | I40: =SUM(Quarter!AA40:AD40) -> 144.29 | J40: =SUM(Quarter!AE40:AH40) -> 108.85 | K40: =SUM(Quarter!AI40:AL40) -> 154.95 | L40: =SUM(Quarter!AM40:AP40) -> 147.88 | M40: =SUM(Quarter!AQ40:AT40) -> 125.35 | N40: =SUM(Quarter!AU40:AX40) -> 161.15 | O40: =SUM(Quarter!AY40:BB40) -> 127.33 | P40: =SUM(Quarter!BC40:BF40) -> 102.44 | Q40: =SUM(Quarter!BG40:BJ40) -> 93.8 | R40: =SUM(Quarter!BK40:BN40) -> 116.42 | S40: =SUM(Quarter!BO40:BR40) -> 119.13 | T40: =SUM(Quarter!BS40:BV40) -> 102.32 | U40: =SUM(Quarter!BW40:BZ40) -> 72.72 | V40: =SUM(Quarter!CA40:CD40) -> 72.72 | W40: =SUM(Quarter!CE40:CH40) -> 92.45 | X40: =SUM(Quarter!CI40:CL40) -> 47.06
A41: Total coal imports (note 3) | B41: Total all countries | C41: =SUM(Quarter!C41:F41) -> 28686.22 | D41: =SUM(Quarter!G41:J41) -> 31891.16 | E41: =SUM(Quarter!K41:N41) -> 36152.82 | F41: =SUM(Quarter!O41:R41) -> 43968.49 | G41: =SUM(Quarter!S41:V41) -> 50528.07 | H41: =SUM(Quarter!W41:Z41) -> 43364.12 | I41: =SUM(Quarter!AA41:AD41) -> 43875.31 | J41: =SUM(Quarter!AE41:AH41) -> 38166.84 | K41: =SUM(Quarter!AI41:AL41) -> 26540.74 | L41: =SUM(Quarter!AM41:AP41) -> 32527.4 | M41: =SUM(Quarter!AQ41:AT41) -> 44815.16 | N41: =SUM(Quarter!AU41:AX41) -> 50611.16 | O41: =SUM(Quarter!AY41:BB41) -> 42225 | P41: =SUM(Quarter!BC41:BF41) -> 22518.07 | Q41: =SUM(Quarter!BG41:BJ41) -> 8913.72 | R41: =SUM(Quarter!BK41:BN41) -> 8497.92 | S41: =SUM(Quarter!BO41:BR41) -> 10084.22 | T41: =SUM(Quarter!BS41:BV41) -> 6228.98 | U41: =SUM(Quarter!BW41:BZ41) -> 4531.1 | V41: =SUM(Quarter!CA41:CD41) -> 4607.7 | W41: =SUM(Quarter!CE41:CH41) -> 6357.54 | X41: =SUM(Quarter!CI41:CL41) -> 3482.64

Sheet Quarter
A1: Table 2.4 Coal imports (thousand tonnes) (note 1)
A2: This worksheet contains one table
A3: Freeze panes are active on this sheet, to turn off freeze panes select 'view' then 'freeze panes' then 'unfreeze panes' or use [Alt W, F]
A4: Type of coal | B4: Country of origin | C4: 2002 1st quarter | D4: 2002 2nd quarter | E4: 2002 3rd quarter | F4: 2002 4th quarter | G4: 2003 1st quarter | H4: 2003 2nd quarter | I4: 2003 3rd quarter | J4: 2003 4th quarter | K4: 2004 1st quarter | L4: 2004 2nd quarter | M4: 2004 3rd quarter | N4: 2004 4th quarter | O4: 2005 1st quarter | P4: 2005 2nd quarter | Q4: 2005 3rd quarter | R4: 2005 4th quarter | S4: 2006 1st quarter | T4: 2006 2nd quarter | U4: 2006 3rd quarter | V4: 2006 4th quarter | W4: 2007 1st quarter | X4: 2007 2nd quarter | Y4: 2007 3rd quarter | Z4: 2007 4th quarter | AA4: 2008 1st quarter | AB4: 2008 2nd quarter | AC4: 2008 3rd quarter | AD4: 2008 4th quarter | AE4: 2009 1st quarter | AF4: 2009 2nd quarter | AG4: 2009 3rd quarter | AH4: 2009 4th quarter | AI4: 2010 1st quarter | AJ4: 2010 2nd quarter | AK4: 2010 3rd quarter | AL4: 2010 4th quarter | AM4: 2011 1st quarter | AN4: 2011 2nd quarter | AO4: 2011 3rd quarter | AP4: 2011 4th quarter | AQ4: 2012 1st quarter | AR4: 2012 2nd quarter | AS4: 2012 3rd quarter | AT4: 2012 4th quarter | AU4: 2013 1st quarter | AV4: 2013 2nd quarter | AW4: 2013 3rd quarter | AX4: 2013 4th quarter | AY4: 2014 1st quarter | AZ4: 2014 2nd quarter | BA4: 2014 3rd quarter | BB4: 2014 4th quarter | BC4: 2015 1st quarter | BD4: 2015 2nd quarter | BE4: 2015 3rd quarter | BF4: 2015 4th quarter | BG4: 2016 1st quarter | BH4: 2016 2nd quarter | BI4: 2016 3rd quarter | BJ4: 2016 4th quarter | BK4: 2017 1st quarter | BL4: 2017 2nd quarter | BM4: 2017 3rd quarter | BN4: 2017 4th quarter | BO4: 2018 1st quarter | BP4: 2018 2nd quarter | BQ4: 2018 3rd quarter | BR4: 2018 4th quarter | BS4: 2019 1st quarter | BT4: 2019 2nd quarter | BU4: 2019 3rd quarter | BV4: 2019 4th quarter | BW4: 2020 1st quarter | BX4: 2020 2nd quarter | BY4: 2020 3rd quarter | BZ4: 2020 4th quarter | CA4: 2021 1st quarter | CB4: 2021 2nd quarter | CC4: 2021 3rd quarter | CD4: 2021 4th quarter | CE4: 2022 1st quarter | CF4: 2022 2nd quarter | CG4: 2022 3rd quarter | CH4: 2022 4th quarter | CI4: 2023 1st quarter | CJ4: 2023 2nd quarter | CK4: 2023 3rd quarter | CL4: 2023 4th quarter [provisional]
A5: Steam Coal | B5: European Union | C5: 93.46 | D5: 57.13 | E5: 99.81 | F5: 57.05 | G5: 121.42 | H5: 36.96 | I5: 59.26 | J5: 96.39 | K5: 60.39 | L5: 334.07 | M5: 358.73 | N5: 178.7 | O5: 232.82 | P5: 252.56 | Q5: 157.41 | R5: 358.38 | S5: 447.91 | T5: 442.7 | U5: 429 | V5: 263.99 | W5: 156.26 | X5: 181.59 | Y5: 59.4 | Z5: 85.15 | AA5: 352.3 | AB5: 211.03 | AC5: 231.14 | AD5: 138.6 | AE5: 84.38 | AF5: 366.24 | AG5: 321.29 | AH5: 364.51 | AI5: 329.27 | AJ5: 150.23 | AK5: 239.22 | AL5: 162.17 | AM5: 406.26 | AN5: 152.03 | AO5: 386.59 | AP5: 111.51 | AQ5: 274.68 | AR5: 41.04 | AS5: 128.48 | AT5: 138.65 | AU5: 163.62 | AV5: 470.03 | AW5: 228.11 | AX5: 262.73 | AY5: 184.16 | AZ5: 180.82 | BA5: 211.75 | BB5: 112.89 | BC5: 127.64 | BD5: 182.75 | BE5: 82.56 | BF5: 133.42 | BG5: 82.82 | BH5: 64.42 | BI5: 112.62 | BJ5: 76.64 | BK5: 33.07 | BL5: 73.11 | BM5: 112.97 | BN5: 74.02 | BO5: 79.75 | BP5: 38.45 | BQ5: 59.15 | BR5: 76.25 | BS5: 66.93 | BT5: 53.72 | BU5: 121.05 | BV5: 65.32 | BW5: 72.54 | BX5: 79.98 | BY5: 49.29 | BZ5: 73.73 | CA5: 93.23 | CB5: 60.46 | CC5: 60.09 | CD5: 43.43 | CE5: 91.99 | CF5: 136.21 | CG5: 44.17 | CH5: 25.46 | CI5: 99.72 | CJ5: 44.99 | CK5: 43.16 | CL5: 100.27
A6: Steam Coal | B6: Australia | C6: 135.19 | D6: 0 | E6: 409.12 | F6: 216.6 | G6: 171.08 | H6: 240.11 | I6: 305.83 | J6: 571.98 | K6: 779.09 | L6: 705.79 | M6: 414.59 | N6: 201.63 | O6: 143.68 | P6: 398.83 | Q6: 131.74 | R6: 153.52 | S6: 0 | T6: 11.86 | U6: 144.07 | V6: 0 | W6: 208.96 | X6: 96.99 | Y6: 229.44 | Z6: 0 | AA6: 86.53 | AB6: 115.37 | AC6: 80.98 | AD6: 415.65 | AE6: 74.23 | AF6: 174.59 | AG6: 194.31 | AH6: 0 | AI6: 0 | AJ6: 0 | AK6: 0 | AL6: 0 | AM6: 0 | AN6: 0 | AO6: 0 | AP6: 0 | AQ6: 0 | AR6: 0 | AS6: 0 | AT6: 0 | AU6: 0 | AV6: 0 | AW6: 0 | AX6: 89.23 | AY6: 0 | AZ6: 0 | BA6: 0 | BB6: 0 | BC6: 0 | BD6: 0 | BE6: 0 | BF6: 0 | BG6: 0 | BH6: 0 | BI6: 0 | BJ6: 0 | BK6: 0.01 | BL6: 0 | BM6: 0 | BN6: 0 | BO6: 0 | BP6: 0 | BQ6: 0 | BR6: 0 | BS6: 0 | BT6: 0 | BU6: 0 | BV6: 0 | BW6: 0 | BX6: 0 | BY6: 0 | BZ6: 0 | CA6: 0 | CB6: 0 | CC6: 0 | CD6: 0 | CE6: 0 | CF6: 0 | CG6: 137.6 | CH6: 298.56 | CI6: 63.8 | CJ6: 0 | CK6: 0 | CL6: 168.69
A7: Steam Coal | B7: Canada | C7: 0 | D7: 0 | E7: 0 | F7: 0 | G7: 0 | H7: 0 | I7: 0 | J7: 0 | K7: 0 | L7: 0 | M7: 0 | N7: 0 | O7: 0 | P7: 0 | Q7: 0 | R7: 0 | S7: 0 | T7: 0 | U7: 0 | V7: 0 | W7: 0 | X7: 0 | Y7: 0 | Z7: 0 | AA7: 0 | AB7: 0 | AC7: 0 | AD7: 0 | AE7: 0 | AF7: 0 | AG7: 0 | AH7: 0 | AI7: 0 | AJ7: 0 | AK7: 0 | AL7: 0 | AM7: 0 | AN7: 0 | AO7: 0 | AP7: 0 | AQ7: 0 | AR7: 120.23 | AS7: 32.39 | AT7: 0 | AU7: 0 | AV7: 130.05 | AW7: 56.65 | AX7: 312.23 | AY7: 0.02 | AZ7: 0.01 | BA7: 0.02 | BB7: 0.02 | BC7: 0 | BD7: 0 | BE7: 0 | BF7: 0.02 | BG7: 0.07 | BH7: 0.08 | BI7: 0.02 | BJ7: 0 | BK7: 0.21 | BL7: 0 | BM7: 0.02 | BN7: 0.06 | BO7: 0.04 | BP7: 0 | BQ7: 0.04 | BR7: 0 | BS7: 0.02 | BT7: 0 | BU7: 0.09 | BV7: 0 | BW7: 0 | BX7: 0 | BY7: 0 | BZ7: 0 | CA7: 0 | CB7: 0 | CC7: 0 | CD7: 0 | CE7: 0.02 | CF7: 0.03 | CG7: 0 | CH7: 0.06 | CI7: 0 | CJ7: 0 | CK7: 0 | CL7: 0
A8: Steam Coal | B8: China | C8: 20.32 | D8: 68.01 | E8: 107.01 | F8: 4.83 | G8: 0 | H8: 0 | I8: 0 | J8: 187.79 | K8: 0 | L8: 93.87 | M8: 84.65 | N8: 0 | O8: 85.44 | P8: 0 | Q8: 20.51 | R8: 0 | S8: 0 | T8: 0 | U8: 0 | V8: 36.11 | W8: 137.08 | X8: 32.54 | Y8: 0 | Z8: 0 | AA8: 0 | AB8: 0 | AC8: 0 | AD8: 0 | AE8: 392.14 | AF8: 208.03 | AG8: 0 | AH8: 0 | AI8: 0 | AJ8: 0 | AK8: 0 | AL8: 0 | AM8: 0 | AN8: 0 | AO8: 0 | AP8: 0 | AQ8: 0 | AR8: 0.24 | AS8: 0 | AT8: 0.1 | AU8: 0 | AV8: 0.1 | AW8: 0.01 | AX8: 0 | AY8: 0 | AZ8: 0 | BA8: 78.01 | BB8: 0 | BC8: 0 | BD8: 0 | BE8: 0 | BF8: 0 | BG8: 0 | BH8: 0.01 | BI8: 0 | BJ8: 0 | BK8: 0 | BL8: 0 | BM8: 0 | BN8: 0.01 | BO8: 0.02 | BP8: 0 | BQ8: 0 | BR8: 0 | BS8: 0 | BT8: 0 | BU8: 0.01 | BV8: 0 | BW8: 0 | BX8: 0 | BY8: 0.01 | BZ8: 0.01 | CA8: 0 | CB8: 0 | CC8: 0.01 | CD8: 0.01 | CE8: 0 | CF8: 0.01 | CG8: 0.01 | CH8: 0.02 | CI8: 0 | CJ8: 0.01 | CK8: 0 | CL8: 0
A9: Steam Coal | B9: Colombia | C9: 1488.21 | D9: 691.05 | E9: 705.89 | F9: 893.71 | G9: 752.75 | H9: 491.79 | I9: 965.92 | J9: 763.91 | K9: 1107.6 | L9: 1144.21 | M9: 807.99 | N9: 549.89 | O9: 790.9 | P9: 1106.46 | Q9: 703.19 | R9: 768.33 | S9: 610.68 | T9: 782.32 | U9: 1462.43 | V9: 1027.31 | W9: 1283.38 | X9: 485.81 | Y9: 872.85 | Z9: 1200.32 | AA9: 1562.94 | AB9: 1523.84 | AC9: 1239.51 | AD9: 967.81 | AE9: 1694.76 | AF9: 1112.97 | AG9: 1130.89 | AH9: 1294.25 | AI9: 1382.61 | AJ9: 915.93 | AK9: 1586.77 | AL9: 2350.3 | AM9: 2090.23 | AN9: 1840.47 | AO9: 1761.9 | AP9: 2317 | AQ9: 3154.21 | AR9: 2475.58 | AS9: 2871.9 | AT9: 3246.87 | AU9: 3014.65 | AV9: 2595.85 | AW9: 3023.7 | AX9: 2658.34 | AY9: 2600.1 | AZ9: 2085.1 | BA9: 1847.82 | BB9: 3157.66 | BC9: 2176.4 | BD9: 1137.21 | BE9: 1219.76 | BF9: 2019.39 | BG9: 1188.56 | BH9: 280.09 | BI9: 618.67 | BJ9: 808.46 | BK9: 179.41 | BL9: 43.53 | BM9: 80.15 | BN9: 428.03 | BO9: 140.14 | BP9: 111 | BQ9: 123.14 | BR9: 248.94 | BS9: 200.79 | BT9: 211.92 | BU9: 240.66 | BV9: 173.59 | BW9: 59.07 | BX9: 0 | BY9: 0 | BZ9: 55.5 | CA9: 46.57 | CB9: 12.98 | CC9: 37.04 | CD9: 70.42 | CE9: 90.47 | CF9: 38.68 | CG9: 192.01 | CH9: 129.76 | CI9: 77.66 | CJ9: 135.07 | CK9: 87 | CL9: 31.17
A10: Steam Coal | B10: Indonesia | C10: 49.65 | D10: 0 | E10: 0 | F10: 0 | G10: 69.58 | H10: 0 | I10: 178.38 | J10: 126.79 | K10: 621.01 | L10: 308.6 | M10: 193.3 | N10: 409.09 | O10: 400.6 | P10: 363.44 | Q10: 403.8 | R10: 513.96 | S10: 520.54 | T10: 485.3 | U10: 351.63 | V10: 596.93 | W10: 516.22 | X10: 305.93 | Y10: 228.06 | Z10: 419.71 | AA10: 689.77 | AB10: 275.87 | AC10: 501.93 | AD10: 694.89 | AE10: 243.33 | AF10: 404.34 | AG10: 0 | AH10: 71.06 | AI10: 0 | AJ10: 0 | AK10: 90.53 | AL10: 180.17 | AM10: 0 | AN10: 0 | AO10: 0 | AP10: 0 | AQ10: 0 | AR10: 0 | AS10: 0 | AT10: 0 | AU10: 0 | AV10: 0 | AW10: 0 | AX10: 0 | AY10: 0 | AZ10: 0 | BA10: 0 | BB10: 0 | BC10: 0 | BD10: 0 | BE10: 0 | BF10: 0 | BG10: 0 | BH10: 0 | BI10: 0 | BJ10: 0 | BK10: 0 | BL10: 0 | BM10: 0 | BN10: 0.06 | BO10: 0 | BP10: 0 | BQ10: 0 | BR10: 0 | BS10: 0 | BT10: 0 | BU10: 0 | BV10: 0 | BW10: 0 | BX10: 0 | BY10: 0 | BZ10: 0 | CA10: 0 | CB10: 0 | CC10: 0 | CD10: 0.02 | CE10: 0 | CF10: 0 | CG10: 0 | CH10: 0 | CI10: 0 | CJ10: 0 | CK10: 0 | CL10: 0
A11: Steam Coal | B11: Republic of South Africa | C11: 2320.86 | D11: 2658.89 | E11: 2198.63 | F11: 2770.03 | G11: 2622.75 | H11: 4025.75 | I11: 2248.39 | J11: 3131.2 | K11: 2468.21 | L11: 1913.88 | M11: 2676.97 | N11: 2964 | O11: 3753.78 | P11: 2390.64 | Q11: 2944.16 | R11: 3773.59 | S11: 3224.9 | T11: 2790.2 | U11: 2749.47 | V11: 3981.1 | W11: 1920.45 | X11: 2022.03 | Y11: 1570.43 | Z11: 2427.94 | AA11: 806.61 | AB11: 1154.44 | AC11: 1282.11 | AD11: 1006.18 | AE11: 1476.34 | AF11: 571.89 | AG11: 742.84 | AH11: 242.92 | AI11: 195.46 | AJ11: 425.71 | AK11: 0 | AL11: 142.32 | AM11: 47.36 | AN11: 167.03 | AO11: 91.82 | AP11: 340.76 | AQ11: 194.55 | AR11: 201.98 | AS11: 47.3 | AT11: 102.21 | AU11: 282.68 | AV11: 90.72 | AW11: 104.43 | AX11: 0 | AY11: 96.98 | AZ11: 0 | BA11: 47.6 | BB11: 0 | BC11: 210.37 | BD11: 0 | BE11: 0 | BF11: 49.95 | BG11: 0 | BH11: 84.54 | BI11: 0 | BJ11: 51.19 | BK11: 0 | BL11: 49.5 | BM11: 0 | BN11: 0 | BO11: 68.98 | BP11: 0 | BQ11: 49.49 | BR11: 0 | BS11: 47.25 | BT11: 49.35 | BU11: 0 | BV11: 49.39 | BW11: 0 | BX11: 0 | BY11: 66.7 | BZ11: 0 | CA11: 48.69 | CB11: 0 | CC11: 47.85 | CD11: 0 | CE11: 55.73 | CF11: 71.38 | CG11: 207.04 | CH11: 280.43 | CI11: 88.3 | CJ11: 25.02 | CK11: 0.1 | CL11: 50.92
A12: Steam Coal | B12: Russia | C12: 713.89 | D12: 1020.63 | E12: 1055.74 | F12: 975.11 | G12: 613.43 | H12: 717.89 | I12: 791.75 | J12: 1277.37 | K12: 2117.88 | L12: 2417.86 | M12: 2491.41 | N12: 2649.35 | O12: 3128.1 | P12: 4533.72 | Q12: 4707.06 | R12: 4519.09 | S12: 5885.7 | T12: 5727.53 | U12: 5793.17 | V12: 5136.62 | W12: 5668.29 | X12: 5028.61 | Y12: 4510.09 | Z12: 4977.52 | AA12: 5791.42 | AB12: 4414.25 | AC12: 4724.25 | AD12: 6263.52 | AE12: 5967.94 | AF12: 5191.29 | AG12: 3866.11 | AH12: 3388.27 | AI12: 3429.25 | AJ12: 1539.48 | AK12: 2039.38 | AL12: 2157.99 | AM12: 2661.73 | AN12: 2934.98 | AO12: 3029.76 | AP12: 3466.64 | AQ12: 4333.95 | AR12: 4791.69 | AS12: 4124.69 | AT12: 4208.25 | AU12: 4320.96 | AV12: 5169.52 | AW12: 5198.7 | AX12: 4318.08 | AY12: 5763.25 | AZ12: 4318.93 | BA12: 3078.74 | BB12: 3277.34 | BC12: 4051.5 | BD12: 1336.9 | BE12: 683.87 | BF12: 1007.61 | BG12: 863.22 | BH12: 91.75 | BI12: 336.04 | BJ12: 403.8 | BK12: 1036.35 | BL12: 337.79 | BM12: 532.05 | BN12: 1012.73 | BO12: 1631.83 | BP12: 356.09 | BQ12: 593.26 | BR12: 1146.85 | BS12: 768.07 | BT12: 145.13 | BU12: 445.92 | BV12: 321.13 | BW12: 225.31 | BX12: 64.22 | BY12: 278.52 | BZ12: 324.55 | CA12: 222.43 | CB12: 125.84 | CC12: 238.79 | CD12: 533.49 | CE12: 490.98 | CF12: 263.91 | CG12: 225.36 | CH12: 0 | CI12: 0 | CJ12: 0 | CK12: 0 | CL12: 0
A13: Steam Coal | B13: USA | C13: 33.3 | D13: 137.7 | E13: 0 | F13: 83.32 | G13: 19.63 | H13: 0 | I13: 147.21 | J13: 0 | K13: 240.22 | L13: 129.47 | M13: 273.43 | N13: 100.11 | O13: 20.09 | P13: 100.48 | Q13: 65.9 | R13: 79.08 | S13: 91.36 | T13: 200.94 | U13: 62.94 | V13: 352.03 | W13: 174.4 | X13: 384.86 | Y13: 231.49 | Z13: 330.65 | AA13: 419.06 | AB13: 334.49 | AC13: 924.38 | AD13: 1114.4 | AE13: 934.23 | AF13: 692.77 | AG13: 653.48 | AH13: 831.07 | AI13: 866.15 | AJ13: 321.42 | AK13: 197.22 | AL13: 964.09 | AM13: 947.08 | AN13: 691.39 | AO13: 1053.22 | AP13: 1769.25 | AQ13: 1314.32 | AR13: 2756.27 | AS13: 2561.29 | AT13: 2226.62 | AU13: 3101.02 | AV13: 2794.62 | AW13: 2607.06 | AX13: 2495.23 | AY13: 2482.5 | AZ13: 2001.39 | BA13: 1637.69 | BB13: 2041.96 | BC13: 1635.51 | BD13: 353.59 | BE13: 725.16 | BF13: 228.92 | BG13: 0 | BH13: 48.39 | BI13: 4.03 | BJ13: 333.95 | BK13: 548.05 | BL13: 207.7 | BM13: 292.08 | BN13: 403.89 | BO13: 452.53 | BP13: 637.9 | BQ13: 601.77 | BR13: 1098.96 | BS13: 703.56 | BT13: 95.22 | BU13: 0 | BV13: 0 | BW13: 0 | BX13: 0 | BY13: 20.16 | BZ13: 0 | CA13: 0 | CB13: 59.13 | CC13: 107.09 | CD13: 222.22 | CE13: 344.48 | CF13: 360 | CG13: 289.73 | CH13: 321.8 | CI13: 508.97 | CJ13: 68.01 | CK13: 0 | CL13: 199.02
A14: Steam Coal | B14: Venezuela | C14: 0 | D14: 0 | E14: 0 | F14: 0 | G14: 0 | H14: 0 | I14: 0 | J14: 0 | K14: 0 | L14: 0 | M14: 0 | N14: 0 | O14: 0 | P14: 0 | Q14: 0 | R14: 0 | S14: 0 | T14: 0 | U14: 0 | V14: 0 | W14: 0 | X14: 0 | Y14: 0 | Z14: 0 | AA14: 0 | AB14: 0 | AC14: 0 | AD14: 0 | AE14: 0 | AF14: 0 | AG14: 0 | AH14: 0 | AI14: 0 | AJ14: 0 | AK14: 0 | AL14: 0 | AM14: 0 | AN14: 0 | AO14: 0 | AP14: 0 | AQ14: 0 | AR14: 0 | AS14: 0 | AT14: 0 | AU14: 0 | AV14: 0 | AW14: 0 | AX14: 0 | AY14: 0 | AZ14: 0 | BA14: 0 | BB14: 0 | BC14: 0 | BD14: 0 | BE14: 0 | BF14: 0 | BG14: 0 | BH14: 0 | BI14: 0 | BJ14: 0 | BK14: 0 | BL14: 0 | BM14: 0 | BN14: 0 | BO14: 0 | BP14: 0 | BQ14: 0 | BR14: 0 | BS14: 41.7 | BT14: 42.88 | BU14: 0 | BV14: 41.63 | BW14: 107.77 | BX14: 143.99 | BY14: 148.94 | BZ14: 567.05 | CA14: 47.46 | CB14: 71.68 | CC14: 95.27 | CD14: 104.84 | CE14: 75.49 | CF14: 0 | CG14: 0 | CH14: 0 | CI14: 68.82 | CJ14: 0 | CK14: 69.81 | CL14: 32.32
A15: Steam Coal | B15: Other countries | C15: 412.5 | D15: 970.85 | E15: 868.75 | F15: 577.51 | G15: 758.06 | H15: 1197.67 | I15: 1622.43 | J15: 784.32 | K15: 429.14 | L15: 249.26 | M15: 139.49 | N15: 0 | O15: 30.76 | P15: 0 | Q15: 127.86 | R15: 70.42 | S15: 0 | T15: 0 | U15: 0 | V15: 0 | W15: 0 | X15: 0 | Y15: 0 | Z15: 0 | AA15: 0 | AB15: 50.12 | AC15: 0 | AD15: 8.88 | AE15: 53.46 | AF15: 0 | AG15: 23.2 | AH15: 26.69 | AI15: 0 | AJ15: 0 | AK15: 0 | AL15: 85.79 | AM15: 0.01 | AN15: 14.86 | AO15: 106.98 | AP15: 82.94 | AQ15: 27.38 | AR15: 1.67 | AS15: 16.56 | AT15: 226.2 | AU15: 75.1 | AV15: 18.76 | AW15: 170.54 | AX15: 451.48 | AY15: 38.07 | AZ15: 343.86 | BA15: 77.97 | BB15: 89.13 | BC15: 0 | BD15: 49.5 | BE15: 198.4 | BF15: 55.04 | BG15: 158.35 | BH15: 292.6 | BI15: 54.12 | BJ15: 84.42 | BK15: 49.26 | BL15: 96.46 | BM15: 47.38 | BN15: 51.13 | BO15: 10 | BP15: 0.03 | BQ15: 23.11 | BR15: 0.02 | BS15: 0 | BT15: 0 | BU15: 0 | BV15: 63.96 | BW15: 2.5 | BX15: 0 | BY15: 0 | BZ15: 59.96 | CA15: 53.37 | CB15: 0 | CC15: 0.01 | CD15: 20.51 | CE15: 0 | CF15: 10.69 | CG15: 146.3 | CH15: 192.88 | CI15: 53.52 | CJ15: 34.71 | CK15: 17.28 | CL15: 27.75
A16: Steam Coal | B16: Total all countries | C16: 5267.37 | D16: 5604.26 | E16: 5444.94 | F16: 5578.15 | G16: 5128.7 | H16: 6710.17 | I16: 6319.17 | J16: 6939.75 | K16: 7823.54 | L16: 7297 | M16: 7440.56 | N16: 7052.76 | O16: 8586.17 | P16: 9146.13 | Q16: 9261.62 | R16: 10236.37 | S16: 10781.09 | T16: 10440.86 | U16: 10992.73 | V16: 11394.08 | W16: 10065.03 | X16: 8538.36 | Y16: 7701.77 | Z16: 9441.27 | AA16: 9708.64 | AB16: 8079.4 | AC16: 8984.28 | AD16: 10609.93 | AE16: 10920.82 | AF16: 8722.12 | AG16: 6932.12 | AH16: 6218.77 | AI16: 6202.74 | AJ16: 3352.77 | AK16: 4153.12 | AL16: 6042.83 | AM16: 6152.68 | AN16: 5800.76 | AO16: 6430.27 | AP16: 8088.09 | AQ16: 9299.08 | AR16: 10388.7 | AS16: 9782.62 | AT16: 10148.91 | AU16: 10958.03 | AV16: 11269.66 | AW16: 11389.2 | AX16: 10587.31 | AY16: 11165.08 | AZ16: 8930.12 | BA16: 6979.61 | BB16: 8679 | BC16: 8201.42 | BD16: 3059.95 | BE16: 2909.74 | BF16: 3494.35 | BG16: 2293.01 | BH16: 861.88 | BI16: 1125.5 | BJ16: 1758.47 | BK16: 1846.37 | BL16: 808.1 | BM16: 1064.65 | BN16: 1969.93 | BO16: 2383.29 | BP16: 1143.46 | BQ16: 1449.97 | BR16: 2571.01 | BS16: 1828.32 | BT16: 598.23 | BU16: 807.72 | BV16: 715.04 | BW16: 467.2 | BX16: 288.19 | BY16: 563.62 | BZ16: 1080.8 | CA16: 511.75 | CB16: 330.1 | CC16: 586.15 | CD16: 994.93 | CE16: 1149.15 | CF16: 880.9 | CG16: 1242.21 | CH16: 1248.97 | CI16: 960.78 | CJ16: 307.8 | CK16: 217.35 | CL16: 610.14
A17: Coking Coal | B17: European Union | C17: 0 | D17: 0 | E17: 0 | F17: 0 | G17: 0 | H17: 0 | I17: 0 | J17: 13.68 | K17: 0 | L17: 0 | M17: 0 | N17: 0 | O17: 0 | P17: 0 | Q17: 0 | R17: 0 | S17: 0 | T17: 0 | U17: 0 | V17: 0 | W17: 7.32 | X17: 0 | Y17: 0 | Z17: 0 | AA17: 0 | AB17: 0 | AC17: 0 | AD17: 0 | AE17: 0 | AF17: 0 | AG17: 0 | AH17: 0 | AI17: 0.6 | AJ17: 0.21 | AK17: 0.13 | AL17: 0 | AM17: 1.16 | AN17: 0.96 | AO17: 0.41 | AP17: 0 | AQ17: 1.05 | AR17: 0.83 | AS17: 0.53 | AT17: 1.52 | AU17: 2.67 | AV17: 1.58 | AW17: 1.16 | AX17: 2.33 | AY17: 4.42 | AZ17: 15.83 | BA17: 6.43 | BB17: 5.19 | BC17: 8.06 | BD17: 5.26 | BE17: 3.87 | BF17: 15.91 | BG17: 13.06 | BH17: 18.21 | BI17: 4.94 | BJ17: 6.32 | BK17: 6.04 | BL17: 6.13 | BM17: 7.1 | BN17: 9.82 | BO17: 5.74 | BP17: 7.51 | BQ17: 4.95 | BR17: 10.53 | BS17: 8.84 | BT17: 8.24 | BU17: 5.51 | BV17: 10.81 | BW17: 10.82 | BX17: 5.46 | BY17: 8.45 | BZ17: 9.28 | CA17: 7.88 | CB17: 9.41 | CC17: 7.26 | CD17: 9.72 | CE17: 168.4 | CF17: 8.41 | CG17: 6.8 | CH17: 11.14 | CI17: 10.25 | CJ17: 7.9 | CK17: 32.77 | CL17: 11.58
A18: Coking Coal | B18: Australia | C18: 1099.64 | D18: 1083.69 | E18: 1121.53 | F18: 928.14 | G18: 1023.74 | H18: 1031.23 | I18: 1289.42 | J18: 835.72 | K18: 1037.04 | L18: 912.23 | M18: 1208.79 | N18: 982.05 | O18: 929.17 | P18: 826.79 | Q18: 862.03 | R18: 849.92 | S18: 975.64 | T18: 984.2 | U18: 826.06 | V18: 980.49 | W18: 1077.53 | X18: 728.62 | Y18: 999.06 | Z18: 1103.47 | AA18: 738.69 | AB18: 788 | AC18: 800.91 | AD18: 874.99 | AE18: 1009.9 | AF18: 521.9 | AG18: 527.07 | AH18: 475.95 | AI18: 770.68 | AJ18: 703.97 | AK18: 1007.2 | AL18: 955.52 | AM18: 794.23 | AN18: 702.63 | AO18: 1036.14 | AP18: 847.11 | AQ18: 717.39 | AR18: 700.86 | AS18: 486.43 | AT18: 455.59 | AU18: 305.19 | AV18: 641.5 | AW18: 420.07 | AX18: 691.17 | AY18: 132.13 | AZ18: 377.18 | BA18: 430.18 | BB18: 309.27 | BC18: 290.99 | BD18: 289.81 | BE18: 141.39 | BF18: 187.63 | BG18: 43.23 | BH18: 165.73 | BI18: 125.22 | BJ18: 443.41 | BK18: 55.68 | BL18: 202.77 | BM18: 249.38 | BN18: 241.33 | BO18: 288.24 | BP18: 98.08 | BQ18: 159.8 | BR18: 84.14 | BS18: 298.51 | BT18: 95.8 | BU18: 28.9 | BV18: 0 | BW18: 156.8 | BX18: 79.31 | BY18: 58.48 | BZ18: 25.06 | CA18: 219.33 | CB18: 151.42 | CC18: 95.85 | CD18: 44.85 | CE18: 86.46 | CF18: 29.07 | CG18: 142.33 | CH18: 71.13 | CI18: 215.54 | CJ18: 0 | CK18: 0 | CL18: 0
A19: Coking Coal | B19: Canada | C19: 174.24 | D19: 178.15 | E19: 273.11 | F19: 153.34 | G19: 169.96 | H19: 187.56 | I19: 226.17 | J19: 208.94 | K19: 137.5 | L19: 204.43 | M19: 201.14 | N19: 172.08 | O19: 243.17 | P19: 371.46 | Q19: 208.72 | R19: 268.65 | S19: 290.84 | T19: 364.87 | U19: 260.9 | V19: 360.07 | W19: 470.58 | X19: 385.03 | Y19: 477.99 | Z19: 355.24 | AA19: 358.86 | AB19: 459.61 | AC19: 397.71 | AD19: 162.23 | AE19: 0 | AF19: 0 | AG19: 104.67 | AH19: 99.24 | AI19: 257.48 | AJ19: 0 | AK19: 140.6 | AL19: 59.49 | AM19: 99.18 | AN19: 87.37 | AO19: 128.3 | AP19: 48.03 | AQ19: 40.28 | AR19: 60.39 | AS19: 37.97 | AT19: 15.84 | AU19: 13.74 | AV19: 42.21 | AW19: 0 | AX19: 0 | AY19: 118.54 | AZ19: 68.98 | BA19: 176.85 | BB19: 69.91 | BC19: 155.6 | BD19: 67.52 | BE19: 110.78 | BF19: 0 | BG19: 0 | BH19: 0 | BI19: 0 | BJ19: 0 | BK19: 0 | BL19: 0 | BM19: 0 | BN19: 36.08 | BO19: 0 | BP19: 0 | BQ19: 0 | BR19: 0 | BS19: 0 | BT19: 0 | BU19: 0 | BV19: 0 | BW19: 0 | BX19: 0 | BY19: 0 | BZ19: 0 | CA19: 0 | CB19: 0 | CC19: 0 | CD19: 0 | CE19: 0 | CF19: 63.1 | CG19: 0 | CH19: 0 | CI19: 0 | CJ19: 30.86 | CK19: 79.27 | CL19: 110.22
A20: Coking Coal | B20: China | C20: 0 | D20: 0 | E20: 0 | F20: 0 | G20: 0 | H20: 0 | I20: 0 | J20: 0 | K20: 0 | L20: 0 | M20: 0 | N20: 0 | O20: 0 | P20: 0 | Q20: 0 | R20: 0 | S20: 0 | T20: 0 | U20: 0 | V20: 0 | W20: 0 | X20: 65.33 | Y20: 0 | Z20: 0 | AA20: 0 | AB20: 0 | AC20: 0 | AD20: 0 | AE20: 0 | AF20: 0 | AG20: 0 | AH20: 0 | AI20: 0 | AJ20: 0 | AK20: 0 | AL20: 0 | AM20: 0 | AN20: 0 | AO20: 0 | AP20: 0 | AQ20: 0 | AR20: 0 | AS20: 0 | AT20: 0 | AU20: 0 | AV20: 0 | AW20: 0 | AX20: 0 | AY20: 0 | AZ20: 0 | BA20: 0 | BB20: 0 | BC20: 0 | BD20: 0 | BE20: 0 | BF20: 0 | BG20: 0 | BH20: 0 | BI20: 0 | BJ20: 0 | BK20: 0 | BL20: 35.67 | BM20: 28.75 | BN20: 0 | BO20: 0 | BP20: 0 | BQ20: 0 | BR20: 0 | BS20: 0 | BT20: 0 | BU20: 0 | BV20: 0 | BW20: 0 | BX20: 0 | BY20: 0 | BZ20: 0 | CA20: 0 | CB20: 0 | CC20: 0 | CD20: 0 | CE20: 0 | CF20: 0 | CG20: 0 | CH20: 0 | CI20: 0 | CJ20: 0 | CK20: 44.22 | CL20: 0
A21: Coking Coal | B21: Colombia | C21: 0 | D21: 0 | E21: 0 | F21: 0 | G21: 0 | H21: 0 | I21: 0 | J21: 122.81 | K21: 0 | L21: 0 | M21: 0 | N21: 0 | O21: 0 | P21: 0 | Q21: 0 | R21: 0 | S21: 0 | T21: 0 | U21: 0 | V21: 0 | W21: 0 | X21: 0 | Y21: 0 | Z21: 0 | AA21: 0 | AB21: 0 | AC21: 0 | AD21: 0 | AE21: 0 | AF21: 0 | AG21: 0 | AH21: 0 | AI21: 0 | AJ21: 69.77 | AK21: 0 | AL21: 0 | AM21: 0 | AN21: 0 | AO21: 0 | AP21: 0 | AQ21: 0 | AR21: 0 | AS21: 0 | AT21: 0 | AU21: 0 | AV21: 27.09 | AW21: 79.09 | AX21: 0.05 | AY21: 0 | AZ21: 0 | BA21: 0 | BB21: 0 | BC21: 0 | BD21: 0 | BE21: 0 | BF21: 0 | BG21: 0 | BH21: 0 | BI21: 0 | BJ21: 0 | BK21: 0 | BL21: 0 | BM21: 0 | BN21: 0 | BO21: 0 | BP21: 0 | BQ21: 0 | BR21: 0 | BS21: 0 | BT21: 0 | BU21: 0 | BV21: 0 | BW21: 0 | BX21: 0 | BY21: 0 | BZ21: 0 | CA21: 0 | CB21: 0 | CC21: 0 | CD21: 0 | CE21: 0 | CF21: 0 | CG21: 0 | CH21: 0 | CI21: 0 | CJ21: 0 | CK21: 0 | CL21: 0
A22: Coking Coal | B22: Indonesia | C22: 0 | D22: 0 | E22: 0 | F22: 0 | G22: 0 | H22: 0 | I22: 0 | J22: 0 | K22: 0 | L22: 0 | M22: 0 | N22: 0 | O22: 0 | P22: 0 | Q22: 0 | R22: 0 | S22: 0 | T22: 0 | U22: 0 | V22: 0 | W22: 0 | X22: 0 | Y22: 0 | Z22: 0 | AA22: 0 | AB22: 0 | AC22: 0 | AD22: 0 | AE22: 0 | AF22: 0 | AG22: 0 | AH22: 0 | AI22: 0 | AJ22: 0 | AK22: 0 | AL22: 0 | AM22: 0 | AN22: 0 | AO22: 0 | AP22: 0 | AQ22: 0 | AR22: 0 | AS22: 0 | AT22: 0 | AU22: 0 | AV22: 0 | AW22: 0 | AX22: 0 | AY22: 0 | AZ22: 0 | BA22: 0 | BB22: 0 | BC22: 0 | BD22: 0 | BE22: 0 | BF22: 0 | BG22: 0 | BH22: 0 | BI22: 0 | BJ22: 0 | BK22: 0 | BL22: 0 | BM22: 0 | BN22: 0 | BO22: 0 | BP22: 0 | BQ22: 0 | BR22: 0 | BS22: 0 | BT22: 0 | BU22: 0 | BV22: 0 | BW22: 0 | BX22: 0 | BY22: 0 | BZ22: 0 | CA22: 0 | CB22: 0 | CC22: 0 | CD22: 0 | CE22: 0 | CF22: 0 | CG22: 0 | CH22: 0 | CI22: 0 | CJ22: 0 | CK22: 0 | CL22: 0
A23: Coking Coal | B23: Republic of South Africa | C23: 0 | D23: 0 | E23: 0 | F23: 0 | G23: 0 | H23: 121.27 | I23: 0 | J23: 110.57 | K23: 0 | L23: 0 | M23: 0 | N23: 0 | O23: 0 | P23: 0 | Q23: 0 | R23: 0 | S23: 0 | T23: 0 | U23: 0 | V23: 0 | W23: 0 | X23: 0 | Y23: 0 | Z23: 0 | AA23: 0 | AB23: 0 | AC23: 0 | AD23: 0 | AE23: 0 | AF23: 0 | AG23: 0 | AH23: 0 | AI23: 0 | AJ23: 0 | AK23: 0 | AL23: 0 | AM23: 0 | AN23: 0 | AO23: 0 | AP23: 0 | AQ23: 0 | AR23: 0 | AS23: 0 | AT23: 0 | AU23: 0 | AV23: 0 | AW23: 0 | AX23: 0 | AY23: 0 | AZ23: 0 | BA23: 0 | BB23: 0 | BC23: 0 | BD23: 0 | BE23: 0 | BF23: 0 | BG23: 0 | BH23: 0 | BI23: 0 | BJ23: 0 | BK23: 0 | BL23: 0 | BM23: 0 | BN23: 0 | BO23: 0 | BP23: 0 | BQ23: 0 | BR23: 0 | BS23: 0 | BT23: 0 | BU23: 0 | BV23: 0 | BW23: 0 | BX23: 0 | BY23: 0 | BZ23: 0 | CA23: 0 | CB23: 0 | CC23: 0 | CD23: 0 | CE23: 0 | CF23: 0 | CG23: 0 | CH23: 0 | CI23: 0 | CJ23: 0 | CK23: 0 | CL23: 0
A24: Coking Coal | B24: Russia | C24: 0 | D24: 10.01 | E24: 0 | F24: 24.04 | G24: 16.49 | H24: 30.56 | I24: 50.8 | J24: 0 | K24: 27.39 | L24: 56.79 | M24: 44.34 | N24: 19.78 | O24: 72.14 | P24: 162.94 | Q24: 302.63 | R24: 169.75 | S24: 25.73 | T24: 112.43 | U24: 84.42 | V24: 50.75 | W24: 65.46 | X24: 81.84 | Y24: 104.36 | Z24: 105.33 | AA24: 62.18 | AB24: 85.22 | AC24: 39.92 | AD24: 108.26 | AE24: 47.69 | AF24: 64.96 | AG24: 75.95 | AH24: 121.55 | AI24: 69.61 | AJ24: 156.25 | AK24: 14.95 | AL24: 135.05 | AM24: 79.98 | AN24: 32.32 | AO24: 127.09 | AP24: 0 | AQ24: 0 | AR24: 169.65 | AS24: 187.11 | AT24: 237.93 | AU24: 219.89 | AV24: 277.34 | AW24: 371.1 | AX24: 192.14 | AY24: 401.87 | AZ24: 300.36 | BA24: 415.91 | BB24: 277.46 | BC24: 423.6 | BD24: 454.64 | BE24: 340.76 | BF24: 71.52 | BG24: 169.05 | BH24: 236.4 | BI24: 142.61 | BJ24: 181.61 | BK24: 304.32 | BL24: 312.88 | BM24: 234.12 | BN24: 63.4 | BO24: 239.74 | BP24: 250.35 | BQ24: 241.15 | BR24: 150.19 | BS24: 206.37 | BT24: 181.05 | BU24: 204.01 | BV24: 118.56 | BW24: 86.47 | BX24: 222.38 | BY24: 272.71 | BZ24: 152.71 | CA24: 121.77 | CB24: 341.53 | CC24: 252.28 | CD24: 111.44 | CE24: 28.98 | CF24: 0 | CG24: 0 | CH24: 0 | CI24: 0 | CJ24: 0 | CK24: 0 | CL24: 0
A25: Coking Coal | B25: USA | C25: 429.99 | D25: 337.44 | E25: 232.99 | F25: 267.02 | G25: 215.03 | H25: 299.19 | I25: 247.83 | J25: 218.87 | K25: 306.99 | L25: 318.26 | M25: 359.65 | N25: 356.86 | O25: 285.73 | P25: 358.35 | Q25: 278.75 | R25: 360.91 | S25: 681.74 | T25: 177.14 | U25: 332.31 | V25: 224.14 | W25: 349.33 | X25: 344.78 | Y25: 409.45 | Z25: 274.27 | AA25: 285.45 | AB25: 437.48 | AC25: 462.04 | AD25: 287.24 | AE25: 460.88 | AF25: 225.05 | AG25: 451.34 | AH25: 472.58 | AI25: 349.41 | AJ25: 1020.04 | AK25: 447.56 | AL25: 458.51 | AM25: 391.26 | AN25: 553.88 | AO25: 387.74 | AP25: 540.32 | AQ25: 344.06 | AR25: 422.36 | AS25: 587.21 | AT25: 578.28 | AU25: 451.93 | AV25: 1027.8 | AW25: 816.84 | AX25: 371.04 | AY25: 768.74 | AZ25: 867.15 | BA25: 640.08 | BB25: 742.97 | BC25: 677.97 | BD25: 802.51 | BE25: 354.42 | BF25: 240.14 | BG25: 317.4 | BH25: 196.69 | BI25: 185.86 | BJ25: 344.17 | BK25: 176.75 | BL25: 273.91 | BM25: 253.86 | BN25: 194.47 | BO25: 192.81 | BP25: 123.96 | BQ25: 281.82 | BR25: 167.65 | BS25: 204.92 | BT25: 201.43 | BU25: 196.75 | BV25: 366.9 | BW25: 307.75 | BX25: 148.75 | BY25: 195 | BZ25: 319.14 | CA25: 226.02 | CB25: 123.48 | CC25: 268.03 | CD25: 121.77 | CE25: 82.32 | CF25: 357.93 | CG25: 354.76 | CH25: 333.03 | CI25: 69.62 | CJ25: 342.04 | CK25: 177.56 | CL25: 207.68
A26: Coking Coal | B26: Venezuela | C26: 0 | D26: 0 | E26: 0 | F26: 0 | G26: 0 | H26: 0 | I26: 0 | J26: 0 | K26: 0 | L26: 0 | M26: 0 | N26: 0 | O26: 0 | P26: 0 | Q26: 0 | R26: 0 | S26: 0 | T26: 0 | U26: 0 | V26: 0 | W26: 0 | X26: 0 | Y26: 0 | Z26: 0 | AA26: 0 | AB26: 0 | AC26: 0 | AD26: 0 | AE26: 0 | AF26: 0 | AG26: 0 | AH26: 0 | AI26: 0 | AJ26: 0 | AK26: 0 | AL26: 0 | AM26: 0 | AN26: 0 | AO26: 0 | AP26: 0 | AQ26: 0 | AR26: 0 | AS26: 0 | AT26: 0 | AU26: 0 | AV26: 0 | AW26: 0 | AX26: 0 | AY26: 0 | AZ26: 0 | BA26: 0 | BB26: 0 | BC26: 0 | BD26: 0 | BE26: 0 | BF26: 0 | BG26: 0 | BH26: 0 | BI26: 0 | BJ26: 0 | BK26: 0 | BL26: 0 | BM26: 0 | BN26: 0 | BO26: 0 | BP26: 0 | BQ26: 0 | BR26: 0 | BS26: 0 | BT26: 0 | BU26: 0 | BV26: 0 | BW26: 0 | BX26: 0 | BY26: 0 | BZ26: 0 | CA26: 0 | CB26: 0 | CC26: 0 | CD26: 0 | CE26: 0 | CF26: 0 | CG26: 0 | CH26: 0 | CI26: 0 | CJ26: 0 | CK26: 0 | CL26: 0
A27: Coking Coal | B27: Other countries | C27: 0 | D27: 0 | E27: 0 | F27: 1.21 | G27: 16.77 | H27: 0 | I27: 0 | J27: 37.29 | K27: 0 | L27: 0 | M27: 0 | N27: 0 | O27: 0 | P27: 0 | Q27: 0 | R27: 0 | S27: 0 | T27: 0 | U27: 29.76 | V27: 13 | W27: 6.18 | X27: 0 | Y27: 18.4 | Z27: 51.46 | AA27: 0 | AB27: 0 | AC27: 0 | AD27: 0 | AE27: 51.63 | AF27: 77.78 | AG27: 0 | AH27: 476.02 | AI27: 0 | AJ27: 17.29 | AK27: 0 | AL27: 0 | AM27: 0 | AN27: 0 | AO27: 49.6 | AP27: 0 | AQ27: 0 | AR27: 0 | AS27: 0 | AT27: 25.23 | AU27: 50.89 | AV27: 44.41 | AW27: 89.61 | AX27: 105.01 | AY27: 34.18 | AZ27: 38.32 | BA27: 141.91 | BB27: 0 | BC27: 45.96 | BD27: 0 | BE27: 0 | BF27: 61.81 | BG27: 43.76 | BH27: 57.27 | BI27: 86.09 | BJ27: 0 | BK27: 0 | BL27: 0 | BM27: 0 | BN27: 0 | BO27: 27.82 | BP27: 18.93 | BQ27: 27.08 | BR27: 36.89 | BS27: 0 | BT27: 40.73 | BU27: 0 | BV27: 0 | BW27: 0 | BX27: 0 | BY27: 0 | BZ27: 0 | CA27: 0 | CB27: 0 | CC27: 0 | CD27: 0 | CE27: 0 | CF27: 0 | CG27: 0 | CH27: 0 | CI27: 0 | CJ27: 0 | CK27: 0 | CL27: 0
A28: Coking Coal | B28: Total all countries | C28: 1703.88 | D28: 1609.29 | E28: 1627.62 | F28: 1373.76 | G28: 1441.99 | H28: 1669.81 | I28: 1814.23 | J28: 1547.89 | K28: 1508.91 | L28: 1491.7 | M28: 1813.92 | N28: 1530.77 | O28: 1530.2 | P28: 1719.55 | Q28: 1652.12 | R28: 1649.24 | S28: 1973.95 | T28: 1638.63 | U28: 1533.45 | V28: 1628.44 | W28: 1976.39 | X28: 1605.6 | Y28: 2009.27 | Z28: 1889.78 | AA28: 1445.18 | AB28: 1770.32 | AC28: 1700.58 | AD28: 1432.71 | AE28: 1570.1 | AF28: 889.7 | AG28: 1159.03 | AH28: 1645.34 | AI28: 1447.77 | AJ28: 1967.53 | AK28: 1610.43 | AL28: 1608.58 | AM28: 1365.81 | AN28: 1377.16 | AO28: 1729.28 | AP28: 1435.45 | AQ28: 1102.78 | AR28: 1354.09 | AS28: 1299.25 | AT28: 1314.39 | AU28: 1044.29 | AV28: 2061.93 | AW28: 1777.86 | AX28: 1361.74 | AY28: 1459.87 | AZ28: 1667.82 | BA28: 1811.36 | BB28: 1404.81 | BC28: 1602.18 | BD28: 1619.74 | BE28: 951.23 | BF28: 577.02 | BG28: 586.51 | BH28: 674.3 | BI28: 544.73 | BJ28: 975.51 | BK28: 542.79 | BL28: 831.37 | BM28: 773.21 | BN28: 545.09 | BO28: 754.34 | BP28: 498.82 | BQ28: 714.81 | BR28: 449.4 | BS28: 718.64 | BT28: 527.26 | BU28: 435.18 | BV28: 496.27 | BW28: 561.85 | BX28: 455.9 | BY28: 534.63 | BZ28: 506.19 | CA28: 575 | CB28: 625.83 | CC28: 623.42 | CD28: 287.78 | CE28: 366.16 | CF28: 458.52 | CG28: 503.9 | CH28: 415.29 | CI28: 295.41 | CJ28: 380.8 | CK28: 333.82 | CL28: 329.48
A29: Anthracite | B29: European Union | C29: 10.84 | D29: 1.69 | E29: 14.28 | F29: 32.35 | G29: 23.94 | H29: 4.27 | I29: 1.3 | J29: 11.38 | K29: 10.23 | L29: 16.94 | M29: 18.33 | N29: 8.73 | O29: 23.13 | P29: 7.89 | Q29: 2.06 | R29: 3.94 | S29: 3.75 | T29: 2.53 | U29: 4.63 | V29: 1.73 | W29: 0.59 | X29: 0 | Y29: 2.8 | Z29: 2.05 | AA29: 4.08 | AB29: 0.62 | AC29: 3.44 | AD29: 2.38 | AE29: 5.57 | AF29: 15.32 | AG29: 16.03 | AH29: 3.99 | AI29: 11.1 | AJ29: 11.42 | AK29: 9.32 | AL29: 40.2 | AM29: 28.35 | AN29: 12.32 | AO29: 25.54 | AP29: 30.22 | AQ29: 12.34 | AR29: 26.72 | AS29: 34.77 | AT29: 32.25 | AU29: 29.22 | AV29: 32.94 | AW29: 24.57 | AX29: 22.54 | AY29: 14.81 | AZ29: 6.11 | BA29: 11.75 | BB29: 9.42 | BC29: 6.12 | BD29: 18.99 | BE29: 12.43 | BF29: 17.32 | BG29: 10 | BH29: 13.75 | BI29: 17.08 | BJ29: 18.92 | BK29: 6.68 | BL29: 9.04 | BM29: 7.62 | BN29: 10.05 | BO29: 17.74 | BP29: 1.18 | BQ29: 16.06 | BR29: 26.78 | BS29: 17.57 | BT29: 8.46 | BU29: 18.38 | BV29: 35.12 | BW29: 11.42 | BX29: 14.06 | BY29: 20.08 | BZ29: 15.12 | CA29: 11.57 | CB29: 9.42 | CC29: 17.27 | CD29: 7.8 | CE29: 35.28 | CF29: 12.44 | CG29: 7.03 | CH29: 9.17 | CI29: 8.9 | CJ29: 7.66 | CK29: 13.59 | CL29: 8.92
A30: Anthracite | B30: Australia | C30: 0 | D30: 0 | E30: 11.37 | F30: 9.17 | G30: 0 | H30: 0 | I30: 0 | J30: 0 | K30: 0 | L30: 0 | M30: 0 | N30: 0 | O30: 0 | P30: 0 | Q30: 0 | R30: 0 | S30: 0 | T30: 0 | U30: 0 | V30: 0 | W30: 0 | X30: 0 | Y30: 0 | Z30: 0 | AA30: 0 | AB30: 0 | AC30: 0 | AD30: 0 | AE30: 0 | AF30: 0 | AG30: 0 | AH30: 0 | AI30: 0 | AJ30: 11.75 | AK30: 0 | AL30: 0 | AM30: 0 | AN30: 0 | AO30: 0 | AP30: 0 | AQ30: 0 | AR30: 0 | AS30: 0 | AT30: 0 | AU30: 0 | AV30: 0 | AW30: 0 | AX30: 0 | AY30: 0 | AZ30: 0 | BA30: 0 | BB30: 0 | BC30: 0 | BD30: 0 | BE30: 0 | BF30: 0 | BG30: 0 | BH30: 0 | BI30: 0 | BJ30: 0 | BK30: 0 | BL30: 0 | BM30: 0 | BN30: 0 | BO30: 0 | BP30: 0 | BQ30: 0 | BR30: 0 | BS30: 0 | BT30: 0 | BU30: 0 | BV30: 0 | BW30: 0 | BX30: 0 | BY30: 0 | BZ30: 0 | CA30: 0 | CB30: 0 | CC30: 0 | CD30: 0 | CE30: 0 | CF30: 0 | CG30: 4.38 | CH30: 0 | CI30: 0 | CJ30: 0 | CK30: 0 | CL30: 0
A31: Anthracite | B31: Canada | C31: 0 | D31: 0 | E31: 0 | F31: 0 | G31: 0 | H31: 0 | I31: 0 | J31: 0 | K31: 0 | L31: 0 | M31: 0 | N31: 0 | O31: 0 | P31: 0 | Q31: 0 | R31: 0 | S31: 0 | T31: 0 | U31: 0 | V31: 0 | W31: 0 | X31: 0 | Y31: 0 | Z31: 0 | AA31: 0 | AB31: 0 | AC31: 0 | AD31: 0 | AE31: 0 | AF31: 0 | AG31: 0 | AH31: 0 | AI31: 0 | AJ31: 0 | AK31: 0 | AL31: 0 | AM31: 0 | AN31: 0 | AO31: 0 | AP31: 0 | AQ31: 0 | AR31: 0 | AS31: 0 | AT31: 0 | AU31: 0 | AV31: 0 | AW31: 0 | AX31: 0 | AY31: 0 | AZ31: 0 | BA31: 0 | BB31: 0 | BC31: 0 | BD31: 0 | BE31: 0 | BF31: 0 | BG31: 0 | BH31: 0 | BI31: 0 | BJ31: 0 | BK31: 0 | BL31: 0 | BM31: 0 | BN31: 0 | BO31: 0 | BP31: 0 | BQ31: 0 | BR31: 0 | BS31: 0 | BT31: 0 | BU31: 0 | BV31: 0 | BW31: 0 | BX31: 0 | BY31: 0 | BZ31: 0 | CA31: 0 | CB31: 0 | CC31: 0 | CD31: 0 | CE31: 0 | CF31: 0 | CG31: 0 | CH31: 5.63 | CI31: 0 | CJ31: 0 | CK31: 0 | CL31: 0
A32: Anthracite | B32: China | C32: 10.93 | D32: 0.01 | E32: 0.07 | F32: 27.46 | G32: 36.67 | H32: 0.02 | I32: 3.55 | J32: 0 | K32: 40.43 | L32: 0 | M32: 2.02 | N32: 0 | O32: 3.42 | P32: 1.5 | Q32: 19.61 | R32: 0 | S32: 2.43 | T32: 4.62 | U32: 5.27 | V32: 1.67 | W32: 3.14 | X32: 9.8 | Y32: 32.71 | Z32: 2.71 | AA32: 33.48 | AB32: 11.3 | AC32: 1.11 | AD32: 4.99 | AE32: 7.81 | AF32: 2.21 | AG32: 0 | AH32: 3.75 | AI32: 1.11 | AJ32: 10.49 | AK32: 4.91 | AL32: 0 | AM32: 9.48 | AN32: 25 | AO32: 13.43 | AP32: 3.47 | AQ32: 3.92 | AR32: 5.7 | AS32: 0 | AT32: 3.09 | AU32: 7.6 | AV32: 9.17 | AW32: 1.08 | AX32: 15.54 | AY32: 2.3 | AZ32: 20.95 | BA32: 1.02 | BB32: 4.31 | BC32: 7.03 | BD32: 8.49 | BE32: 7.05 | BF32: 0 | BG32: 1.09 | BH32: 3.92 | BI32: 3.09 | BJ32: 3.29 | BK32: 6.35 | BL32: 2.71 | BM32: 0 | BN32: 1.05 | BO32: 0.99 | BP32: 0.08 | BQ32: 0.89 | BR32: 2.48 | BS32: 5.7 | BT32: 1.26 | BU32: 0 | BV32: 0 | BW32: 0.99 | BX32: 0.44 | BY32: 0 | BZ32: 5.27 | CA32: 0.78 | CB32: 4.42 | CC32: 0 | CD32: 0.69 | CE32: 0 | CF32: 0 | CG32: 0 | CH32: 0.02 | CI32: 0 | CJ32: 0 | CK32: 0.04 | CL32: 0.09
A33: Anthracite | B33: Colombia | C33: 23.52 | D33: 0 | E33: 0 | F33: 0 | G33: 0 | H33: 0 | I33: 0 | J33: 0 | K33: 0 | L33: 0 | M33: 0 | N33: 0 | O33: 0 | P33: 0 | Q33: 0 | R33: 0 | S33: 0 | T33: 0 | U33: 0 | V33: 0 | W33: 12.77 | X33: 0 | Y33: 0 | Z33: 0 | AA33: 0 | AB33: 0 | AC33: 0 | AD33: 0 | AE33: 0 | AF33: 0 | AG33: 0 | AH33: 0 | AI33: 11.23 | AJ33: 0 | AK33: 0 | AL33: 0 | AM33: 0 | AN33: 0 | AO33: 0 | AP33: 0 | AQ33: 0 | AR33: 0 | AS33: 0 | AT33: 0 | AU33: 0 | AV33: 0 | AW33: 0 | AX33: 0 | AY33: 0 | AZ33: 0 | BA33: 0 | BB33: 9.28 | BC33: 0 | BD33: 0 | BE33: 0 | BF33: 0 | BG33: 0 | BH33: 0 | BI33: 0 | BJ33: 0 | BK33: 0 | BL33: 0 | BM33: 0 | BN33: 0 | BO33: 0 | BP33: 0 | BQ33: 0 | BR33: 0 | BS33: 0 | BT33: 0 | BU33: 0 | BV33: 0 | BW33: 0 | BX33: 0 | BY33: 0 | BZ33: 0 | CA33: 0 | CB33: 0 | CC33: 0 | CD33: 0 | CE33: 0 | CF33: 0 | CG33: 0 | CH33: 0 | CI33: 0 | CJ33: 0 | CK33: 0 | CL33: 1.09
A34: Anthracite | B34: Indonesia | C34: 0 | D34: 0 | E34: 0 | F34: 0 | G34: 0 | H34: 0 | I34: 0 | J34: 0 | K34: 0 | L34: 0 | M34: 0 | N34: 0 | O34: 0 | P34: 0 | Q34: 0 | R34: 0 | S34: 0 | T34: 0 | U34: 0 | V34: 0 | W34: 0 | X34: 0 | Y34: 0 | Z34: 0 | AA34: 0 | AB34: 0 | AC34: 0 | AD34: 0 | AE34: 0 | AF34: 0 | AG34: 0 | AH34: 0 | AI34: 0 | AJ34: 0 | AK34: 0 | AL34: 0 | AM34: 0 | AN34: 0 | AO34: 0 | AP34: 0 | AQ34: 0 | AR34: 0 | AS34: 0 | AT34: 0 | AU34: 0 | AV34: 0 | AW34: 0 | AX34: 0 | AY34: 0 | AZ34: 0 | BA34: 0 | BB34: 0 | BC34: 0 | BD34: 0 | BE34: 0 | BF34: 0 | BG34: 0 | BH34: 0 | BI34: 0 | BJ34: 0 | BK34: 0 | BL34: 0 | BM34: 0 | BN34: 0 | BO34: 0 | BP34: 0 | BQ34: 0 | BR34: 0 | BS34: 0 | BT34: 0 | BU34: 0 | BV34: 0 | BW34: 0 | BX34: 0 | BY34: 0.17 | BZ34: 0.05 | CA34: 0 | CB34: 0 | CC34: 0 | CD34: 0.01 | CE34: 0.07 | CF34: 0 | CG34: 0 | CH34: 0 | CI34: 0 | CJ34: 0 | CK34: 0.01 | CL34: 0
A35: Anthracite | B35: Republic of South Africa | C35: 80.21 | D35: 5.03 | E35: 1.19 | F35: 28.34 | G35: 18.79 | H35: 82.35 | I35: 0 | J35: 8.4 | K35: 23.09 | L35: 0 | M35: 0 | N35: 8.93 | O35: 24.4 | P35: 0 | Q35: 18.72 | R35: 5.83 | S35: 31.14 | T35: 0 | U35: 0 | V35: 10.66 | W35: 16.84 | X35: 0 | Y35: 0 | Z35: 5.89 | AA35: 0 | AB35: 21.9 | AC35: 0 | AD35: 9.54 | AE35: 9.45 | AF35: 0 | AG35: 0 | AH35: 10.05 | AI35: 0 | AJ35: 0 | AK35: 0 | AL35: 0 | AM35: 0 | AN35: 0 | AO35: 0 | AP35: 0 | AQ35: 0 | AR35: 0 | AS35: 0 | AT35: 6.51 | AU35: 0 | AV35: 0 | AW35: 0 | AX35: 6.16 | AY35: 6.83 | AZ35: 0 | BA35: 0 | BB35: 0 | BC35: 0 | BD35: 0 | BE35: 0 | BF35: 6.39 | BG35: 0 | BH35: 0 | BI35: 0 | BJ35: 0 | BK35: 0 | BL35: 0 | BM35: 0 | BN35: 0 | BO35: 0 | BP35: 0 | BQ35: 0 | BR35: 0 | BS35: 0 | BT35: 0 | BU35: 0 | BV35: 0 | BW35: 0 | BX35: 0 | BY35: 0 | BZ35: 0 | CA35: 0 | CB35: 0 | CC35: 0 | CD35: 0 | CE35: 0 | CF35: 0 | CG35: 0 | CH35: 0 | CI35: 0 | CJ35: 0 | CK35: 0.32 | CL35: 3.12
A36: Anthracite | B36: Russia | C36: 9.04 | D36: 34.03 | E36: 45.86 | F36: 44.57 | G36: 0.16 | H36: 0.26 | I36: 0.11 | J36: 13.85 | K36: 0 | L36: 5.68 | M36: 0 | N36: 9.37 | O36: 17.64 | P36: 27.95 | Q36: 7.97 | R36: 22.21 | S36: 3.14 | T36: 0 | U36: 11.46 | V36: 22 | W36: 0 | X36: 0 | Y36: 0 | Z36: 11.23 | AA36: 0 | AB36: 1 | AC36: 14.19 | AD36: 19.38 | AE36: 10.81 | AF36: 9.25 | AG36: 8.33 | AH36: 5.98 | AI36: 9.71 | AJ36: 0 | AK36: 33.43 | AL36: 0 | AM36: 0 | AN36: 0 | AO36: 0 | AP36: 0 | AQ36: 0 | AR36: 0 | AS36: 0 | AT36: 0 | AU36: 0 | AV36: 0 | AW36: 11.87 | AX36: 0 | AY36: 0 | AZ36: 6.02 | BA36: 21.9 | BB36: 7.46 | BC36: 0 | BD36: 0 | BE36: 10.08 | BF36: 0 | BG36: 4.34 | BH36: 0 | BI36: 3.71 | BJ36: 0.07 | BK36: 0 | BL36: 18.67 | BM36: 15.29 | BN36: 15.63 | BO36: 14.61 | BP36: 22.45 | BQ36: 11.86 | BR36: 3.22 | BS36: 0.69 | BT36: 1.79 | BU36: 1.71 | BV36: 0 | BW36: 0 | BX36: 0 | BY36: 0 | BZ36: 0 | CA36: 0 | CB36: 5.44 | CC36: 3.01 | CD36: 11.88 | CE36: 0 | CF36: 0 | CG36: 0 | CH36: 0 | CI36: 0 | CJ36: 0 | CK36: 0 | CL36: 0
A37: Anthracite | B37: USA | C37: 26.72 | D37: 0.35 | E37: 0 | F37: 0 | G37: 27.6 | H37: 0.07 | I37: 0.09 | J37: 17.6 | K37: 1.58 | L37: 0.02 | M37: 0 | N37: 0 | O37: 0 | P37: 0 | Q37: 0 | R37: 0 | S37: 0 | T37: 0 | U37: 0 | V37: 0 | W37: 0 | X37: 0 | Y37: 0 | Z37: 0 | AA37: 0 | AB37: 0 | AC37: 15.82 | AD37: 0 | AE37: 0 | AF37: 0 | AG37: 0 | AH37: 0 | AI37: 0 | AJ37: 0.25 | AK37: 0.03 | AL37: 0 | AM37: 0.06 | AN37: 0 | AO37: 0 | AP37: 0 | AQ37: 0.04 | AR37: 0 | AS37: 0 | AT37: 0 | AU37: 0 | AV37: 0.28 | AW37: 0.12 | AX37: 0 | AY37: 0 | AZ37: 0 | BA37: 0 | BB37: 0 | BC37: 0.15 | BD37: 0.02 | BE37: 0 | BF37: 0 | BG37: 0.19 | BH37: 2.64 | BI37: 0.11 | BJ37: 0.3 | BK37: 0.87 | BL37: 0 | BM37: 0 | BN37: 0 | BO37: 0 | BP37: 0.01 | BQ37: 0 | BR37: 0.07 | BS37: 0 | BT37: 0 | BU37: 0 | BV37: 0 | BW37: 0 | BX37: 0 | BY37: 0 | BZ37: 0 | CA37: 0.06 | CB37: 0.3 | CC37: 0 | CD37: 0.05 | CE37: 0 | CF37: 0.24 | CG37: 5.07 | CH37: 0 | CI37: 0 | CJ37: 0 | CK37: 0 | CL37: 0
A38: Anthracite | B38: Venezuela | C38: 0 | D38: 0 | E38: 0 | F38: 0 | G38: 0 | H38: 0 | I38: 0 | J38: 0 | K38: 0 | L38: 0 | M38: 0 | N38: 0 | O38: 0 | P38: 0 | Q38: 0 | R38: 0 | S38: 0 | T38: 0 | U38: 0 | V38: 0 | W38: 0 | X38: 0 | Y38: 0 | Z38: 0 | AA38: 0 | AB38: 0 | AC38: 0 | AD38: 0 | AE38: 0 | AF38: 0 | AG38: 0 | AH38: 0 | AI38: 0 | AJ38: 0 | AK38: 0 | AL38: 0 | AM38: 0 | AN38: 0 | AO38: 0 | AP38: 0 | AQ38: 0 | AR38: 0 | AS38: 0 | AT38: 0 | AU38: 0 | AV38: 0 | AW38: 0 | AX38: 0 | AY38: 0 | AZ38: 0 | BA38: 0 | BB38: 0 | BC38: 0 | BD38: 0 | BE38: 0 | BF38: 0 | BG38: 0 | BH38: 0 | BI38: 0 | BJ38: 0 | BK38: 0 | BL38: 0 | BM38: 0 | BN38: 0 | BO38: 0 | BP38: 0 | BQ38: 0 | BR38: 0 | BS38: 0 | BT38: 0 | BU38: 0 | BV38: 0 | BW38: 0 | BX38: 0 | BY38: 0 | BZ38: 0 | CA38: 0 | CB38: 0 | CC38: 0 | CD38: 0 | CE38: 0 | CF38: 0 | CG38: 0 | CH38: 0 | CI38: 0 | CJ38: 0 | CK38: 0 | CL38: 0
A39: Anthracite | B39: Other countries | C39: 40.56 | D39: 5.2 | E39: 6.09 | F39: 8.04 | G39: 3.38 | H39: 48.45 | I39: 11.52 | J39: 5.7 | K39: 14.32 | L39: 33.87 | M39: 0 | N39: 0 | O39: 0 | P39: 0 | Q39: 0 | R39: 0 | S39: 0 | T39: 8 | U39: 10 | V39: 21.8 | W39: 0 | X39: 22.84 | Y39: 0 | Z39: 12.92 | AA39: 0 | AB39: 1 | AC39: 0 | AD39: 0 | AE39: 0 | AF39: 0 | AG39: 0 | AH39: 0 | AI39: 0 | AJ39: 0 | AK39: 0 | AL39: 0 | AM39: 0 | AN39: 0.01 | AO39: 0 | AP39: 0 | AQ39: 0 | AR39: 0 | AS39: 0 | AT39: 0 | AU39: 0 | AV39: 0 | AW39: 0 | AX39: 0.06 | AY39: 4.53 | AZ39: 0.48 | BA39: 0.16 | BB39: 0 | BC39: 0.01 | BD39: 0.02 | BE39: 0 | BF39: 8.33 | BG39: 0.29 | BH39: 0 | BI39: 0.01 | BJ39: 11 | BK39: 9.15 | BL39: 11.48 | BM39: 1.22 | BN39: 0.61 | BO39: 0.6 | BP39: 0 | BQ39: 0.04 | BR39: 0.06 | BS39: 0.04 | BT39: 6.38 | BU39: 5.18 | BV39: 0.04 | BW39: 0.02 | BX39: 5.08 | BY39: 0.02 | BZ39: 0.01 | CA39: 0.01 | CB39: 0.01 | CC39: 0 | CD39: 0.01 | CE39: 0.16 | CF39: 0 | CG39: 0.9 | CH39: 12.06 | CI39: 3.29 | CJ39: 0 | CK39: 0.02 | CL39: 0
A40: Anthracite | B40: Total all countries | C40: 201.82 | D40: 46.31 | E40: 78.87 | F40: 149.94 | G40: 110.54 | H40: 135.41 | I40: 16.56 | J40: 56.93 | K40: 89.66 | L40: 56.53 | M40: 20.35 | N40: 27.11 | O40: 68.67 | P40: 37.75 | Q40: 48.66 | R40: 31.99 | S40: 40.46 | T40: 15.16 | U40: 31.36 | V40: 57.86 | W40: 33.35 | X40: 32.93 | Y40: 35.56 | Z40: 34.81 | AA40: 37.56 | AB40: 35.85 | AC40: 34.56 | AD40: 36.32 | AE40: 33.65 | AF40: 26.79 | AG40: 24.37 | AH40: 24.04 | AI40: 33.15 | AJ40: 33.91 | AK40: 47.69 | AL40: 40.2 | AM40: 37.89 | AN40: 37.33 | AO40: 38.97 | AP40: 33.69 | AQ40: 16.3 | AR40: 32.42 | AS40: 34.77 | AT40: 41.86 | AU40: 36.82 | AV40: 42.39 | AW40: 37.64 | AX40: 44.3 | AY40: 28.47 | AZ40: 33.56 | BA40: 34.83 | BB40: 30.47 | BC40: 13.32 | BD40: 27.52 | BE40: 29.56 | BF40: 32.04 | BG40: 15.91 | BH40: 20.31 | BI40: 24 | BJ40: 33.58 | BK40: 23.05 | BL40: 41.9 | BM40: 24.13 | BN40: 27.34 | BO40: 33.94 | BP40: 23.73 | BQ40: 28.85 | BR40: 32.61 | BS40: 24 | BT40: 17.89 | BU40: 25.27 | BV40: 35.16 | BW40: 12.42 | BX40: 19.58 | BY40: 20.27 | BZ40: 20.45 | CA40: 12.42 | CB40: 19.58 | CC40: 20.27 | CD40: 20.45 | CE40: 35.51 | CF40: 12.68 | CG40: 17.38 | CH40: 26.88 | CI40: 12.19 | CJ40: 7.66 | CK40: 13.98 | CL40: 13.23
A41: Total coal imports (note 3) | B41: Total all countries | C41: 7173.07 | D41: 7259.86 | E41: 7151.44 | F41: 7101.85 | G41: 6681.24 | H41: 8515.4 | I41: 8149.96 | J41: 8544.56 | K41: 9422.11 | L41: 8845.24 | M41: 9274.83 | N41: 8610.64 | O41: 10185.04 | P41: 10903.43 | Q41: 10962.41 | R41: 11917.61 | S41: 12795.5 | T41: 12094.65 | U41: 12557.54 | V41: 13080.38 | W41: 12074.77 | X41: 10176.89 | Y41: 9746.6 | Z41: 11365.86 | AA41: 11191.37 | AB41: 9885.57 | AC41: 10719.42 | AD41: 12078.95 | AE41: 12524.56 | AF41: 9638.61 | AG41: 8115.52 | AH41: 7888.15 | AI41: 7683.67 | AJ41: 5354.2 | AK41: 5811.25 | AL41: 7691.62 | AM41: 7556.38 | AN41: 7215.25 | AO41: 8198.53 | AP41: 9557.24 | AQ41: 10418.16 | AR41: 11775.21 | AS41: 11116.63 | AT41: 11505.16 | AU41: 12039.14 | AV41: 13373.97 | AW41: 13204.7 | AX41: 11993.35 | AY41: 12653.41 | AZ41: 10631.5 | BA41: 8825.81 | BB41: 10114.28 | BC41: 9816.92 | BD41: 4707.21 | BE41: 3890.53 | BF41: 4103.41 | BG41: 2895.44 | BH41: 1556.49 | BI41: 1694.23 | BJ41: 2767.56 | BK41: 2412.2 | BL41: 1681.37 | BM41: 1861.99 | BN41: 2542.36 | BO41: 3171.57 | BP41: 1666.01 | BQ41: 2193.62 | BR41: 3053.02 | BS41: 2570.96 | BT41: 1143.37 | BU41: 1268.17 | BV41: 1246.48 | BW41: 1041.47 | BX41: 763.67 | BY41: 1118.52 | BZ41: 1607.44 | CA41: 1099.18 | CB41: 975.51 | CC41: 1229.84 | CD41: 1303.17 | CE41: 1550.82 | CF41: 1352.09 | CG41: 1763.49 | CH41: 1691.14 | CI41: 1268.38 | CJ41: 696.26 | CK41: 565.15 | CL41: 952.85

Sheet Calculation (hidden)
F2: Annual! | J2: Quarter!
B3: Year | C3: Quarter
B4: 2023 | C4: 4
F5: 23 | G5: 24 | J5: =K5-1 -> 82 | K5: =L5-1 -> 83 | L5: =M5-1 -> 84 | M5: 85 | N5: 86 | O5: 87 | P5: 88 | Q5: =R5-1 -> 89 | R5: 90
E6: 4 | F6: =$F$2&"r"&$E6&"c"&F$5 -> Annual!r4c23 | G6: Annual!r4c24 | I6: 4 | J6: =$J$2&"r"&$I6&"c"&J$5 -> Quarter!r4c82 | K6: Quarter!r4c83 | L6: Quarter!r4c84 | M6: Quarter!r4c85 | N6: Quarter!r4c86 | O6: Quarter!r4c87 | P6: Quarter!r4c88 | Q6: Quarter!r4c89 | R6: Quarter!r4c90
E7: 5 | F7: Annual!r5c23 | G7: Annual!r5c24 | I7: 5 | J7: Quarter!r5c82 | K7: Quarter!r5c83 | L7: Quarter!r5c84 | M7: Quarter!r5c85 | N7: Quarter!r5c86 | O7: Quarter!r5c87 | P7: Quarter!r5c88 | Q7: Quarter!r5c89 | R7: Quarter!r5c90
E8: 6 | F8: Annual!r6c23 | G8: Annual!r6c24 | I8: 6 | J8: Quarter!r6c82 | K8: Quarter!r6c83 | L8: Quarter!r6c84 | M8: Quarter!r6c85 | N8: Quarter!r6c86 | O8: Quarter!r6c87 | P8: Quarter!r6c88 | Q8: Quarter!r6c89 | R8: Quarter!r6c90
E9: 7 | F9: Annual!r7c23 | G9: Annual!r7c24 | I9: 7 | J9: Quarter!r7c82 | K9: Quarter!r7c83 | L9: Quarter!r7c84 | M9: Quarter!r7c85 | N9: Quarter!r7c86 | O9: Quarter!r7c87 | P9: Quarter!r7c88 | Q9: Quarter!r7c89 | R9: Quarter!r7c90
E10: 8 | F10: Annual!r8c23 | G10: Annual!r8c24 | I10: 8 | J10: Quarter!r8c82 | K10: Quarter!r8c83 | L10: Quarter!r8c84 | M10: Quarter!r8c85 | N10: Quarter!r8c86 | O10: Quarter!r8c87 | P10: Quarter!r8c88 | Q10: Quarter!r8c89 | R10: Quarter!r8c90
E11: 9 | F11: Annual!r9c23 | G11: Annual!r9c24 | I11: 9 | J11: Quarter!r9c82 | K11: Quarter!r9c83 | L11: Quarter!r9c84 | M11: Quarter!r9c85 | N11: Quarter!r9c86 | O11: Quarter!r9c87 | P11: Quarter!r9c88 | Q11: Quarter!r9c89 | R11: Quarter!r9c90
E12: 10 | F12: Annual!r10c23 | G12: Annual!r10c24 | I12: 10 | J12: Quarter!r10c82 | K12: Quarter!r10c83 | L12: Quarter!r10c84 | M12: Quarter!r10c85 | N12: Quarter!r10c86 | O12: Quarter!r10c87 | P12: Quarter!r10c88 | Q12: Quarter!r10c89 | R12: Quarter!r10c90
E13: 11 | F13: Annual!r11c23 | G13: Annual!r11c24 | I13: 11 | J13: Quarter!r11c82 | K13: Quarter!r11c83 | L13: Quarter!r11c84 | M13: Quarter!r11c85 | N13: Quarter!r11c86 | O13: Quarter!r11c87 | P13: Quarter!r11c88 | Q13: Quarter!r11c89 | R13: Quarter!r11c90
E14: 12 | F14: Annual!r12c23 | G14: Annual!r12c24 | I14: 12 | J14: Quarter!r12c82 | K14: Quarter!r12c83 | L14: Quarter!r12c84 | M14: Quarter!r12c85 | N14: Quarter!r12c86 | O14: Quarter!r12c87 | P14: Quarter!r12c88 | Q14: Quarter!r12c89 | R14: Quarter!r12c90
E15: 13 | F15: Annual!r13c23 | G15: Annual!r13c24 | I15: 13 | J15: Quarter!r13c82 | K15: Quarter!r13c83 | L15: Quarter!r13c84 | M15: Quarter!r13c85 | N15: Quarter!r13c86 | O15: Quarter!r13c87 | P15: Quarter!r13c88 | Q15: Quarter!r13c89 | R15: Quarter!r13c90
E16: 14 | F16: Annual!r14c23 | G16: Annual!r14c24 | I16: 14 | J16: Quarter!r14c82 | K16: Quarter!r14c83 | L16: Quarter!r14c84 | M16: Quarter!r14c85 | N16: Quarter!r14c86 | O16: Quarter!r14c87 | P16: Quarter!r14c88 | Q16: Quarter!r14c89 | R16: Quarter!r14c90
E17: 15 | F17: Annual!r15c23 | G17: Annual!r15c24 | I17: 15 | J17: Quarter!r15c82 | K17: Quarter!r15c83 | L17: Quarter!r15c84 | M17: Quarter!r15c85 | N17: Quarter!r15c86 | O17: Quarter!r15c87 | P17: Quarter!r15c88 | Q17: Quarter!r15c89 | R17: Quarter!r15c90
E18: 16 | F18: Annual!r16c23 | G18: Annual!r16c24 | I18: 16 | J18: Quarter!r16c82 | K18: Quarter!r16c83 | L18: Quarter!r16c84 | M18: Quarter!r16c85 | N18: Quarter!r16c86 | O18: Quarter!r16c87 | P18: Quarter!r16c88 | Q18: Quarter!r16c89 | R18: Quarter!r16c90
E19: 17 | F19: Annual!r17c23 | G19: Annual!r17c24 | I19: 17 | J19: Quarter!r17c82 | K19: Quarter!r17c83 | L19: Quarter!r17c84 | M19: Quarter!r17c85 | N19: Quarter!r17c86 | O19: Quarter!r17c87 | P19: Quarter!r17c88 | Q19: Quarter!r17c89 | R19: Quarter!r17c90
E20: 18 | F20: Annual!r18c23 | G20: Annual!r18c24 | I20: 18 | J20: Quarter!r18c82 | K20: Quarter!r18c83 | L20: Quarter!r18c84 | M20: Quarter!r18c85 | N20: Quarter!r18c86 | O20: Quarter!r18c87 | P20: Quarter!r18c88 | Q20: Quarter!r18c89 | R20: Quarter!r18c90
E21: 19 | F21: Annual!r19c23 | G21: Annual!r19c24 | I21: 19 | J21: Quarter!r19c82 | K21: Quarter!r19c83 | L21: Quarter!r19c84 | M21: Quarter!r19c85 | N21: Quarter!r19c86 | O21: Quarter!r19c87 | P21: Quarter!r19c88 | Q21: Quarter!r19c89 | R21: Quarter!r19c90
E22: 20 | F22: Annual!r20c23 | G22: Annual!r20c24 | I22: 20 | J22: Quarter!r20c82 | K22: Quarter!r20c83 | L22: Quarter!r20c84 | M22: Quarter!r20c85 | N22: Quarter!r20c86 | O22: Quarter!r20c87 | P22: Quarter!r20c88 | Q22: Quarter!r20c89 | R22: Quarter!r20c90
E23: 21 | F23: Annual!r21c23 | G23: Annual!r21c24 | I23: 21 | J23: Quarter!r21c82 | K23: Quarter!r21c83 | L23: Quarter!r21c84 | M23: Quarter!r21c85 | N23: Quarter!r21c86 | O23: Quarter!r21c87 | P23: Quarter!r21c88 | Q23: Quarter!r21c89 | R23: Quarter!r21c90
E24: 22 | F24: Annual!r22c23 | G24: Annual!r22c24 | I24: 22 | J24: Quarter!r22c82 | K24: Quarter!r22c83 | L24: Quarter!r22c84 | M24: Quarter!r22c85 | N24: Quarter!r22c86 | O24: Quarter!r22c87 | P24: Quarter!r22c88 | Q24: Quarter!r22c89 | R24: Quarter!r22c90
E25: 23 | F25: Annual!r23c23 | G25: Annual!r23c24 | I25: 23 | J25: Quarter!r23c82 | K25: Quarter!r23c83 | L25: Quarter!r23c84 | M25: Quarter!r23c85 | N25: Quarter!r23c86 | O25: Quarter!r23c87 | P25: Quarter!r23c88 | Q25: Quarter!r23c89 | R25: Quarter!r23c90
E26: 24 | F26: Annual!r24c23 | G26: Annual!r24c24 | I26: 24 | J26: Quarter!r24c82 | K26: Quarter!r24c83 | L26: Quarter!r24c84 | M26: Quarter!r24c85 | N26: Quarter!r24c86 | O26: Quarter!r24c87 | P26: Quarter!r24c88 | Q26: Quarter!r24c89 | R26: Quarter!r24c90
E27: 25 | F27: Annual!r25c23 | G27: Annual!r25c24 | I27: 25 | J27: Quarter!r25c82 | K27: Quarter!r25c83 | L27: Quarter!r25c84 | M27: Quarter!r25c85 | N27: Quarter!r25c86 | O27: Quarter!r25c87 | P27: Quarter!r25c88 | Q27: Quarter!r25c89 | R27: Quarter!r25c90
E28: 26 | F28: Annual!r26c23 | G28: Annual!r26c24 | I28: 26 | J28: Quarter!r26c82 | K28: Quarter!r26c83 | L28: Quarter!r26c84 | M28: Quarter!r26c85 | N28: Quarter!r26c86 | O28: Quarter!r26c87 | P28: Quarter!r26c88 | Q28: Quarter!r26c89 | R28: Quarter!r26c90
E29: 27 | F29: =$F$2&"r"&$E29&"c"&F$5 -> Annual!r27c23 | G29: Annual!r27c24 | I29: 27 | J29: Quarter!r27c82 | K29: Quarter!r27c83 | L29: Quarter!r27c84 | M29: Quarter!r27c85 | N29: Quarter!r27c86 | O29: Quarter!r27c87 | P29: Quarter!r27c88 | Q29: Quarter!r27c89 | R29: Quarter!r27c90
E30: 28 | F30: Annual!r28c23 | G30: Annual!r28c24 | I30: 28 | J30: Quarter!r28c82 | K30: Quarter!r28c83 | L30: Quarter!r28c84 | M30: Quarter!r28c85 | N30: Quarter!r28c86 | O30: Quarter!r28c87 | P30: Quarter!r28c88 | Q30: Quarter!r28c89 | R30: Quarter!r28c90
E31: 29 | F31: Annual!r29c23 | G31: Annual!r29c24 | I31: 29 | J31: Quarter!r29c82 | K31: Quarter!r29c83 | L31: Quarter!r29c84 | M31: Quarter!r29c85 | N31: Quarter!r29c86 | O31: Quarter!r29c87 | P31: Quarter!r29c88 | Q31: Quarter!r29c89 | R31: Quarter!r29c90
E32: 30 | F32: Annual!r30c23 | G32: Annual!r30c24 | I32: 30 | J32: Quarter!r30c82 | K32: Quarter!r30c83 | L32: Quarter!r30c84 | M32: Quarter!r30c85 | N32: Quarter!r30c86 | O32: Quarter!r30c87 | P32: Quarter!r30c88 | Q32: Quarter!r30c89 | R32: Quarter!r30c90
E33: 31 | F33: Annual!r31c23 | G33: Annual!r31c24 | I33: 31 | J33: Quarter!r31c82 | K33: Quarter!r31c83 | L33: Quarter!r31c84 | M33: Quarter!r31c85 | N33: Quarter!r31c86 | O33: Quarter!r31c87 | P33: Quarter!r31c88 | Q33: Quarter!r31c89 | R33: Quarter!r31c90
E34: 32 | F34: Annual!r32c23 | G34: Annual!r32c24 | I34: 32 | J34: Quarter!r32c82 | K34: Quarter!r32c83 | L34: Quarter!r32c84 | M34: =$J$2&"r"&$I34&"c"&M$5 -> Quarter!r32c85 | N34: Quarter!r32c86 | O34: Quarter!r32c87 | P34: Quarter!r32c88 | Q34: Quarter!r32c89 | R34: Quarter!r32c90
E35: 33 | F35: Annual!r33c23 | G35: Annual!r33c24 | I35: 33 | J35: =$J$2&"r"&$I35&"c"&J$5 -> Quarter!r33c82 | K35: Quarter!r33c83 | L35: Quarter!r33c84 | M35: Quarter!r33c85 | N35: Quarter!r33c86 | O35: Quarter!r33c87 | P35: Quarter!r33c88 | Q35: Quarter!r33c89 | R35: Quarter!r33c90
E36: 34 | F36: Annual!r34c23 | G36: Annual!r34c24 | I36: 34 | J36: Quarter!r34c82 | K36: Quarter!r34c83 | L36: Quarter!r34c84 | M36: Quarter!r34c85 | N36: Quarter!r34c86 | O36: Quarter!r34c87 | P36: Quarter!r34c88 | Q36: Quarter!r34c89 | R36: Quarter!r34c90
E37: 35 | F37: Annual!r35c23 | G37: Annual!r35c24 | I37: 35 | J37: Quarter!r35c82 | K37: Quarter!r35c83 | L37: Quarter!r35c84 | M37: Quarter!r35c85 | N37: Quarter!r35c86 | O37: Quarter!r35c87 | P37: Quarter!r35c88 | Q37: Quarter!r35c89 | R37: Quarter!r35c90
E38: 36 | F38: Annual!r36c23 | G38: Annual!r36c24 | I38: 36 | J38: Quarter!r36c82 | K38: Quarter!r36c83 | L38: Quarter!r36c84 | M38: Quarter!r36c85 | N38: Quarter!r36c86 | O38: Quarter!r36c87 | P38: Quarter!r36c88 | Q38: Quarter!r36c89 | R38: Quarter!r36c90
E39: 37 | F39: Annual!r37c23 | G39: Annual!r37c24 | I39: 37 | J39: Quarter!r37c82 | K39: Quarter!r37c83 | L39: Quarter!r37c84 | M39: Quarter!r37c85 | N39: Quarter!r37c86 | O39: Quarter!r37c87 | P39: Quarter!r37c88 | Q39: Quarter!r37c89 | R39: Quarter!r37c90
E40: 38 | F40: Annual!r38c23 | G40: Annual!r38c24 | I40: 38 | J40: Quarter!r38c82 | K40: Quarter!r38c83 | L40: Quarter!r38c84 | M40: Quarter!r38c85 | N40: Quarter!r38c86 | O40: Quarter!r38c87 | P40: Quarter!r38c88 | Q40: Quarter!r38c89 | R40: Quarter!r38c90
E41: 39 | F41: Annual!r39c23 | G41: Annual!r39c24 | I41: 39 | J41: Quarter!r39c82 | K41: Quarter!r39c83 | L41: Quarter!r39c84 | M41: Quarter!r39c85 | N41: Quarter!r39c86 | O41: Quarter!r39c87 | P41: Quarter!r39c88 | Q41: Quarter!r39c89 | R41: Quarter!r39c90
E42: 40 | F42: Annual!r40c23 | G42: Annual!r40c24 | I42: 40 | J42: Quarter!r40c82 | K42: Quarter!r40c83 | L42: Quarter!r40c84 | M42: Quarter!r40c85 | N42: Quarter!r40c86 | O42: Quarter!r40c87 | P42: Quarter!r40c88 | Q42: Quarter!r40c89 | R42: Quarter!r40c90
E43: 41 | F43: Annual!r41c23 | G43: Annual!r41c24 | I43: 41 | J43: Quarter!r41c82 | K43: Quarter!r41c83 | L43: Quarter!r41c84 | M43: Quarter!r41c85 | N43: Quarter!r41c86 | O43: Quarter!r41c87 | P43: Quarter!r41c88 | Q43: Quarter!r41c89 | R43: Quarter!r41c90
E44: 42 | F44: Annual!r42c23 | G44: Annual!r42c24 | I44: 42 | J44: Quarter!r42c82 | K44: Quarter!r42c83 | L44: Quarter!r42c84 | M44: Quarter!r42c85 | N44: Quarter!r42c86 | O44: Quarter!r42c87 | P44: Quarter!r42c88 | Q44: Quarter!r42c89 | R44: Quarter!r42c90
E45: 43 | F45: Annual!r43c23 | G45: Annual!r43c24 | I45: 43 | J45: Quarter!r43c82 | K45: Quarter!r43c83 | L45: Quarter!r43c84 | M45: Quarter!r43c85 | N45: Quarter!r43c86 | O45: Quarter!r43c87 | P45: Quarter!r43c88 | Q45: Quarter!r43c89 | R45: Quarter!r43c90
E46: 44 | F46: Annual!r44c23 | G46: Annual!r44c24 | I46: 44 | J46: Quarter!r44c82 | K46: Quarter!r44c83 | L46: Quarter!r44c84 | M46: Quarter!r44c85 | N46: Quarter!r44c86 | O46: Quarter!r44c87 | P46: Quarter!r44c88 | Q46: Quarter!r44c89 | R46: Quarter!r44c90
I47: 45 | J47: Quarter!r45c82 | K47: Quarter!r45c83 | L47: Quarter!r45c84 | M47: Quarter!r45c85 | N47: Quarter!r45c86 | O47: Quarter!r45c87 | P47: Quarter!r45c88 | Q47: Quarter!r45c89 | R47: Quarter!r45c90
